Workbook

Sheet Planilha RESMO
C1: MINISTÉRIO DO DESENVOLVIMENTO REGIONAL
C2: COMPANHIA DE DESENVOLVIMENTO DOS VALES DO SÃO FRANCISCO E PARNAÍBA
C3: 2ª SUPERINTENDÊNCIA REGIONAL - Bom Jesus da Lapa/BA
A4: =FSUP!A8 -> SERVIÇOS TOPOGRÁFICOS E DE APOIO À FISCALIZAÇÃO E SUPERVISÃO TÉCNICA DE INSTRUMENTOS NA ÁREA DE ABRANGÊNCIA DA CODEVASF, NO ESTADO DE PERNAMBUCO
A5: Local: Área de abrangência da 2ª Superintendência Regional
A7: BASES: | C7: SICRO-BA: JUL/2022; TC-DNIT-BA: JUL/2022; BDI-TC-DNT: AGO/2022 (Ofício-Circular n. 4499/2022) | G7: BDI (%): | I7: =0.4496 -> 0.4496
A8: PLANILHA RESUMO
B11: Item | C11: Descrição | E11: Unidade | F11: Quantidade | G11: Preço Unitário | H11: Preço Total
B12: 1 | C12: Serviços Topográficos e de Supervisão Técnica de Instrumentos | E12: Relatório | F12: 12 | G12: ='Planilha MEDIÇÃO'!H40 -> 410003.35 | H12: =F12*G12 -> 4920040.2 | K12: =G12*0.5/100 -> 2050.02

Sheet Planilha MEDIÇÃO
C1: MINISTÉRIO DA INTEGRAÇÃO E DO DESENVOLVIMENTO REGIONAL
C2: COMPANHIA DE DESENVOLVIMENTO DOS VALES DO SÃO FRANCISCO E PARNAÍBA
C3: 3ª SUPERINTENDÊNCIA REGIONAL - Petrolina/PE
A4: =FSUP!A8 -> SERVIÇOS TOPOGRÁFICOS E DE APOIO À FISCALIZAÇÃO E SUPERVISÃO TÉCNICA DE INSTRUMENTOS NA ÁREA DE ABRANGÊNCIA DA CODEVASF, NO ESTADO DE PERNAMBUCO | N4: Período = | O4: 12 | P4: meses
A5: Local: Área de abrangência da 3ª Superintendência Regional
A7: BASES: | C7: SICRO-PE: JAN/2023; TC-DNIT-PE: JAN/2023; BDI-TC-DNT: AGO/2022 (Ofício-Circular n. 4499/2022) | G7: BDI (%): | I7: =0.4496 -> 0.4496 | J7: BDI - Tabela de Consultoria DNIT (ago/2022)
A8: PLANILHA ORÇAMENTÁRIA
A9: Item | B9: Código | C9: Banco | D9: Descrição | E9: Und | F9: Quant. | G9: Valor Unit | H9: Valor Unit com BDI | I9: Total
A10: 1 | D10: MÃO-DE-OBRA | I10: =I11+I20 -> 3674405.76
A11: 1.1 | D11: Salário da Equipe Técnica | I11: =SUM(I12:I18) -> 3037027.2
A12: 1.1.1 | B12: P9812 | C12: SICRO | D12: Engenheiro | E12: PROFISSIONAIS X MÊS | F12: ='FSUP-I'!I14 -> 48 | G12: ='FSUP-I'!H14 -> 22943.04 | H12: =G12*(1+$I$7) -> 33258.23 | I12: =ROUND(H12*F12,2) -> 1596395.04
A13: 1.1.2 | B13: P8147 | C13: SICRO | D13: Técnico de obras | E13: PROFISSIONAIS X MÊS | F13: ='FSUP-I'!I15 -> 48 | G13: ='FSUP-I'!H15 -> 6743.43 | H13: =G13*(1+$I$7) -> 9775.28 | I13: =ROUND(H13*F13,2) -> 469213.44
A14: 1.1.3 | B14: P9848 | C14: SICRO | D14: Desenhista | E14: PROFISSIONAIS X MÊS | F14: ='FSUP-I'!I17 -> 24 | G14: ='FSUP-I'!H17 -> 6074 | H14: =G14*(1+$I$7) -> 8804.87 | I14: =ROUND(H14*F14,2) -> 211316.88
A15: 1.1.4 | B15: P8163 | C15: SICRO | D15: Topógrafo | E15: PROFISSIONAIS X MÊS | F15: ='FSUP-I'!I18 -> 24 | G15: ='FSUP-I'!H18 -> 7661.93 | H15: =G15*(1+$I$7) -> 11106.73 | I15: =ROUND(H15*F15,2) -> 266561.52
A16: 1.1.5 | B16: P8028 | C16: SICRO | D16: Auxiliar de Topografia | E16: PROFISSIONAIS X MÊS | F16: ='FSUP-I'!I19 -> 24 | G16: ='FSUP-I'!H19 -> 5167.56 | H16: =G16*(1+$I$7) -> 7490.89 | I16: =ROUND(H16*F16,2) -> 179781.36 | O16: =I10/H39 -> 0.7468
A17: 1.1.7 | B17: P8027 | C17: TC-DNIT | D17: Auxiliar de Laboratorio | E17: PROFISSIONAIS X MÊS | F17: ='FSUP-I'!I21 -> 24 | G17: ='FSUP-I'!H21 -> 4045.74 | H17: =G17*(1+$I$7) -> 5864.7 | I17: =ROUND(H17*F17,2) -> 140752.8
A18: 1.1.8 | B18: P8098 | C18: TC-DNIT | D18: Laboratorista | E18: PROFISSIONAIS X MÊS | F18: ='FSUP-I'!I22 -> 24 | G18: ='FSUP-I'!H22 -> 4972.81 | H18: 7208.59 | I18: 173006.16
A20: 1.2 | D20: Viagens | I20: =SUM(I21:I21) -> 637378.56
A21: 1.2.1 | B21: Tabela Diárias da Codevasf | D21: Diárias | E21: UND. | F21: =J21*O4 -> 2016 | G21: ='FSUP-II'!M13 -> 218.1 | H21: =G21*(1+$I$7) -> 316.16 | I21: =ROUND(F21*H21,2) -> 637378.56 | J21: ='Memória de Cálculo'!AE16 -> 168 | K21: diárias/mês x 12 meses
A23: 2 | D23: MANUTENÇÃO OPERACIONAL | I23: =I24+I30 -> 1245632.16
A24: 2.1 | D24: Veículos | I24: =SUM(I25:I28) -> 509724.96
A25: 2.1.1 | B25: E9093 | C25: SICRO | D25: Veículo leve - 53 kW (sem motorista) | E25: UND. X MÊS | F25: ='FSUP-III'!K13*$O$4 -> 24 | G25: ='Memória de Cálculo'!AF33 -> 2835.83 | H25: 4110.82 | I25: =ROUND(F25*H25,2) -> 98659.68
A26: 2.1.2 | B26: E8891 | C26: TC-DNIT | D26: Veículo leve picape 4x4 - 147 kW (sem motorista) | E26: UND. X MÊS | F26: ='FSUP-III'!K14*$O$4 -> 12 | G26: ='Memória de Cálculo'!AF41 -> 8979.65 | H26: 13016.9 | I26: =ROUND(F26*H26,2) -> 156202.8
A27: 2.1.3 | B27: E9093 | C27: SICRO | D27: Veículo leve - 53 kW (sem motorista) | E27: UND. X MÊS | F27: ='FSUP-III'!K16*$O$4 -> 24 | G27: ='Memória de Cálculo'!AF33 -> 2835.83 | H27: 4110.82 | I27: 98659.68
A28: 2.1.4 | B28: E8891 | C28: TC-DNIT | D28: Veículo leve picape 4x4 - 147 kW (sem motorista) - disponibilizado em Irecê/BA | E28: UND. X MÊS | F28: ='FSUP-III'!K17*$O$4 -> 12 | G28: ='Memória de Cálculo'!AF41 -> 8979.65 | H28: 13016.9 | I28: 156202.8
A30: 2.2 | D30: Manutenção e Administração do Escritório | I30: =SUM(I31:I36) -> 735907.2
A31: 2.2.1 | B31: B8951 | C31: TC-DNIT | D31: IMÓVEL COMERCIAL (2,60 do CMCC - SINAPI) | E31: M² X MÊS | F31: ='FSUP-III'!G21 -> 1296 | G31: ='FSUP-III'!H21 -> 46.78 | H31: =G31*(1+$I$7) -> 67.81 | I31: =ROUND(F31*H31,2) -> 87881.76 | J31: 6 m² x equipe mínima/mês x 12 meses
A32: 2.2.2 | B32: B8953 | C32: TC-DNIT | D32: MOBILIÁRIO - ESCRITÓRIO | E32: FUNCIONÁRIOS X MÊS | F32: ='FSUP-III'!G22 -> 216 | G32: ='FSUP-III'!H22 -> 510.96 | H32: 740.69 | I32: 159989.04
A33: 2.2.3 | B33: B8959 | C33: TC-DNIT | D33: CUSTOS DIVERSOS - ESCRITÓRIO | E33: FUNCIONÁRIOS X MÊS | F33: ='FSUP-III'!G23 -> 216 | G33: ='FSUP-III'!H23 -> 131.32 | H33: 190.36 | I33: 41117.76
A34: 2.2.4 | B34: B8958 | C34: TC-DNIT | D34: TOPOGRAFIA | E34: EQUIPE X MÊS | F34: ='FSUP-III'!G24 -> 24 | G34: ='FSUP-III'!H24 -> 3134.16 | H34: 4543.28 | I34: 109038.72 | J34: 2 | K34: equipes de topografia
A35: 2.2.5 | B35: B8955 | C35: TC-DNIT | D35: LABORATÓRIO DE ASFALTO | E35: UNID. X MÊS | F35: ='FSUP-III'!G25 -> 24 | G35: ='FSUP-III'!H25 -> 5400.53 | H35: =G35*(1+$I$7) -> 7828.61 | I35: =ROUND(F35*H35,2) -> 187886.64
A36: 2.2.6 | B36: B8957 | C36: TC-DNIT | D36: LABORATÓRIO DE SOLOS | E36: UNID. X MÊS | F36: ='FSUP-III'!G26 -> 24 | G36: ='FSUP-III'!H26 -> 4311.34 | H36: 6249.72 | I36: 149993.28 | J36: ='FSUP-III'!K26 -> 2 | K36: laboratório de solos
A38: 2.2 | D38: Manutenção e Administração do Escritório | I38: =SUM(I39:I44) -> 0
A39: Total Geral (Período de 12 meses) | H39: =I10+I23+2.25 -> 4920040.17 | K39: =FSUP!N43-H39 -> -3.87
A40: Preço Unitário por Relatório Mensal | H40: =H39/O4 -> 410003.35

Sheet FSUP
H1: Ministério da Integração e do Desenvolvimento Regional - MIDR
H2: Companhia de Desenvolvimento dos Vales do São Francisco e do Parnaíba
H3: 3ª Superintendência Regional da Codevasf
A5: PROPOSTA FINANCEIRA APOIO A FISC. E SUP. DE OBRA | N5: CODIGO:
N6: FSUP
A7: OBJETO: | N7: EDITAL: | S7: Período = | T7: 12 | U7: meses
A8: SERVIÇOS TOPOGRÁFICOS E DE APOIO À FISCALIZAÇÃO E SUPERVISÃO TÉCNICA DE INSTRUMENTOS NA ÁREA DE ABRANGÊNCIA DA CODEVASF, NO ESTADO DE PERNAMBUCO
A9: SERVIÇOS PAGOS A PREÇO UNITÁRIO
A11: MÃO-DE-OBRA
A12: A1 - TOTAL DE SALÁRIO DA EQUIPE COM VÍNCULO ( FSUP-I ) | N12: ='FSUP-I'!J24 -> 1058609.04
A13: A2 - TOTAL DE SALÁRIO DO AUTÔNOMO ( FSUP-I ) | N13: 0
A14: A - TOTAL DOS CUSTOS DE SALÁRIOS DA EQUIPE | N14: =SUM(N12:O13) -> 1058609.04
A15: B1 - ENCARGOS TOTAIS DA EQUIPE TÉCNICA ( FSUP-I ) | N15: ='FSUP-I'!K24 -> 1036470.61
A16: B - TOTAL DOS CUSTOS COM ENCARGOS | N16: =SUM(N15:O15) -> 1036470.61
A17: C1 - CUSTO TOTAL DAS PASSAGENS AÉREAS E TERRESTRES ( FSUP-II ) | N17: 0
A18: C2 - CUSTO TOTAL DAS DIÁRIAS ( FSUP-II ) | N18: ='FSUP-II'!K23 -> 439689.6
A19: C - TOTAL DO CUSTO COM VIAGENS | N19: =SUM(N17:O18) -> 439689.6
A21: MANUTENÇÃO OPERACIONAL
A22: D1 - CUSTO DOS VEÍCULOS ( FSUP-III, ITEM 1 ) | N22: ='FSUP-III'!I18 -> 351631.44
A23: D2 - CUSTO DA MANUTENÇÃO E ADMINISTRAÇÃO DE ESCRITÓRIO ( FSUP-III, ITEM 2 ) | N23: ='FSUP-III'!I27 -> 507664.08
A24: D - TOTAL DOS PREÇOS COM MANUTENÇÃO OPERACIONAL | N24: =SUM(N22:O23) -> 859295.52
A25: TOTAL DOS CUSTOS DIRETOS | N25: =N24+N19+N16+N14 -> 3394064.77
A27: DESPESAS INDIRETAS | T27: % sobre o PV | U27: % sobre o CD
A28: E1 - ADMINISTRAÇÃO CENTRAL ( 10% SOBRE O CUSTO DIRETO ) | N28: =N25*0.1 -> 339406.48 | Q28: Tabela de Preços de Consultoria DNIT | T28: =N28/$N$43 -> 0.069 | U28: 0.1
A29: E2 - DESPESAS FINANCEIRAS ( 1,44% SOBRE O CUSTO DIRETO ) | N29: =N25*1.44/100 -> 48874.53 | Q29: Tabela de Preços de Consultoria DNIT | T29: =N29/$N$43 -> 0.0099 | U29: 0.0144
A30: E3 - RISCOS ( 0,72% SOBRE O CUSTO DIRETO ) | N30: =N25*0.72/100 -> 24437.27 | Q30: Tabela de Preços de Consultoria DNIT | T30: 0.005 | U30: 0.0072
A31: E4 - SEGUROS E GARANTIAS CONTRATUAIS ( 0,14% SOBRE O CUSTO DIRETO ) | N31: =N25*0.14/100 -> 4751.69 | Q31: Tabela de Preços de Consultoria DNIT | T31: 0.001 | U31: 0.0014
A32: TOTAL DOS CUSTOS INDIRETOS | N32: =ROUND(SUM(N28:O31),2) -> 417469.97 | Q32: Tabela de Preços de Consultoria DNIT
A34: BENEFÍCIOS
A35: F1 - LUCRO (12% SOBRE O CUSTO DIRETO ) | N35: =ROUND(N25*0.12,2) -> 407287.77 | Q35: Tabela de Preços de Consultoria DNIT | T35: 0.0828 | U35: 0.12
A37: TRIBUTOS
A38: G1 - PIS ( 2,39% DO CUSTO DIRETO ) | N38: =$N$25*2.39/100 -> 81118.15 | Q38: Tabela de Preços de Consultoria DNIT | T38: 0.0165 | U38: 0.0239
A39: G2 - COFINS ( 11,02% DO CUSTO DIRETO ) | N39: =$N$25*11.02/100 -> 374025.94 | Q39: Tabela de Preços de Consultoria DNIT | T39: 0.076 | U39: 0.1102
A40: G3 - ISS ( 7,25% DO CUSTO DIRETO ) | N40: =$N$25*7.25/100 -> 246069.7 | Q40: Tabela de Preços de Consultoria DNIT | T40: 0.05 | U40: 0.0725
A41: TOTAL DE TRIBUTOS | N41: =ROUND(SUM(N38:O40),2) -> 701213.79
A43: TOTAL DA PROPOSTA (R$) | N43: =ROUND((N25+N32+N35+N41),2) -> 4920036.3
A44: R$/Relatório Mensal | N44: =ROUND(N43/T7,2) -> 410003.03 | Q44: =N44*6 -> 2460018.18
A45: OBSERVAÇÃO:
A46: ESTE ORÇAMENTO FOI CALCULADO COM OS SEGUINTES % MÁXIMOS DE ENCARGOS SOCIAIS E CUSTOS INDIRETOS:
A47: 1. ENCARGOS SOCIAIS DA EQUIPE COM VÍNCULO = 70,91% SOBRE O SALÁRIO MENSAL
A48: 2. CUSTO DE ADMINISTRAÇÃO = 10,00% SOBRE O CUSTO DIRETO CONFORME TABELA DE PREÇOS DE CONSULTORIA (BDI) A PARTIR DE 16/08/2022 | Q48: ='FSUP-I'!L26+'FSUP-II'!K23+'FSUP-III'!I29 -> 3394064.64 | R48: =Q48*(1+44.96%) -> 4920036.1
A49: 3. REMUNERAÇÃO DA EMPRESA (LUCRO) = 12,00% SOBRE O CUSTO DIRETO CONFORME TABELA DE PREÇOS DE CONSULTORIA (BDI) A PARTIR DE 16/08/2022

Sheet FSUP-I
D1: =FSUP!H1 -> Ministério da Integração e do Desenvolvimento Regional - MIDR
D2: =FSUP!H2 -> Companhia de Desenvolvimento dos Vales do São Francisco e do Parnaíba
D3: =FSUP!H3 -> 3ª Superintendência Regional da Codevasf
A5: SALÁRIOS DA EQUIPE TÉCNICA | I5: CODIGO:
I6: FSUP-I
A7: OBJETO | I7: EDITAL:
A8: =FSUP!A8 -> SERVIÇOS TOPOGRÁFICOS E DE APOIO À FISCALIZAÇÃO E SUPERVISÃO TÉCNICA DE INSTRUMENTOS NA ÁREA DE ABRANGÊNCIA DA CODEVASF, NO ESTADO DE PERNAMBUCO | M8: Período = | N8: 12 | O8: meses
A9: EQUIPE TÉCNICA | F9: COMPOSIÇÃO DOS SALÁRIOS POR PROFISSÃO/FUNÇÃO | I9: QTD | J9: CUSTO TOTAL (R$)
G10: ENC.
A11: ITEM | B11: BASE | C11: CÓDIGO | D11: PROFISSÃO/FUNÇÃO | E11: UND. | F11: SALÁRIO | G11: TOTAIS | H11: CUSTO UN. | I11: FUNC X MÊS | J11: S/ ENCARGOS | K11: DOS ENCARGOS | L11: C/ ENCARGOS
C12: (1) | D12: (2) | E12: (3) | F12: (4) | G12: (5) | H12: (6) | I12: (7) | J12: (8) | K12: (9) | L12: (10)
A13: 1 | D13: PROFISSIONAIS DE NÍVEL SUPERIOR
A14: 1.1 | B14: SICRO-PE | C14: P9812 | D14: =IF(B14="SICRO-PE",VLOOKUP(C14,'SICRO ABR-23'!A:F,2,0),IF(B14="TC-DNIT",VLOOKUP(C14,'DNIT 23'!A:V,2,0))) -> Engenheiro | E14: mês | F14: =IF(B14="SICRO-PE",VLOOKUP(C14,'SICRO ABR-23'!A:F,4,0),IF(B14="TC-DNIT",VLOOKUP(C14,'DNIT 23'!A:C,4,0))) -> 12570.15 | G14: =IF(B14="SICRO-PE",VLOOKUP(C14,'SICRO ABR-23'!A:E,5,0),IF(B14="TC-DNIT",VLOOKUP(C14,'DNIT 23'!A:V,23,0))) -> 0.8252 | H14: =F14+G14*F14 -> 22943.04 | I14: =N14*$N$8 -> 48 | J14: =F14*I14 -> 603367.2 | K14: =F14*G14*I14 -> 497898.61 | L14: =H14*I14 -> 1101265.92 | M14: Engenheiros = | N14: 4
A15: 1.3 | B15: SICRO-PE | C15: P9867 | D15: =IF(B15="SICRO-PE",VLOOKUP(C15,'SICRO ABR-23'!A:F,2,0),IF(B15="TC-DNIT",VLOOKUP(C15,'DNIT 23'!A:V,2,0))) -> Técnico especializado - mensalista | E15: mês | F15: =IF(B15="SICRO-PE",VLOOKUP(C15,'SICRO ABR-23'!A:F,4,0),IF(B15="TC-DNIT",VLOOKUP(C15,'DNIT 23'!A:C,4,0))) -> 3150.4 | G15: =IF(B15="SICRO-PE",VLOOKUP(C15,'SICRO ABR-23'!A:E,5,0),IF(B15="TC-DNIT",VLOOKUP(C15,'DNIT 23'!A:V,23,0))) -> 1.1405 | H15: =F15+G15*F15 -> 6743.43 | I15: =N15*$N$8 -> 48 | J15: =F15*I15 -> 151219.2 | K15: =F15*G15*I15 -> 172465.5 | L15: =H15*I15 -> 323684.64 | M15: Técnico = | N15: 4
A16: 2 | D16: PROFISSIONAIS DE NÍVEL TÉCNICO
A17: 2.1 | B17: SICRO-PE | C17: P9848 | D17: =IF(B17="SICRO-PE",VLOOKUP(C17,'SICRO ABR-23'!A:F,2,0),IF(B17="TC-DNIT",VLOOKUP(C17,'DNIT 23'!A:V,2,0))) -> Desenhista | E17: mês | F17: =IF(B17="SICRO-PE",VLOOKUP(C17,'SICRO ABR-23'!A:F,4,0),IF(B17="TC-DNIT",VLOOKUP(C17,'DNIT 23'!A:C,4,0))) -> 2830.91 | G17: =IF(B17="SICRO-PE",VLOOKUP(C17,'SICRO ABR-23'!A:E,5,0),IF(B17="TC-DNIT",VLOOKUP(C17,'DNIT 23'!A:V,23,0))) -> 1.1456 | H17: =F17+G17*F17 -> 6074 | I17: =N17*$N$8 -> 24 | J17: =F17*I17 -> 67941.84 | K17: =F17*G17*I17 -> 77834.17 | L17: =H17*I17 -> 145776 | M17: Cadista = | N17: 2
A18: 2.2 | B18: SICRO-PE | C18: P9949 | D18: =IF(B18="SICRO-PE",VLOOKUP(C18,'SICRO ABR-23'!A:F,2,0),IF(B18="TC-DNIT",VLOOKUP(C18,'DNIT 23'!A:V,2,0))) -> Topógrafo | E18: mês | F18: =IF(B18="SICRO-PE",VLOOKUP(C18,'SICRO ABR-23'!A:F,4,0),IF(B18="TC-DNIT",VLOOKUP(C18,'DNIT 23'!A:C,4,0))) -> 3825.8 | G18: =IF(B18="SICRO-PE",VLOOKUP(C18,'SICRO ABR-23'!A:E,5,0),IF(B18="TC-DNIT",VLOOKUP(C18,'DNIT 23'!A:V,23,0))) -> 1.0027 | H18: =F18+G18*F18 -> 7661.93 | I18: =N18*$N$8 -> 24 | J18: =F18*I18 -> 91819.2 | K18: =F18*G18*I18 -> 92067.11 | L18: =H18*I18 -> 183886.32 | M18: Topógrafo = | N18: 2 | P18: p/ cada topografo 2 aux
A19: 2.3 | B19: SICRO-PE | C19: P9950 | D19: =IF(B19="SICRO-PE",VLOOKUP(C19,'SICRO ABR-23'!A:F,2,0),IF(B19="TC-DNIT",VLOOKUP(C19,'DNIT 23'!A:V,2,0))) -> Auxiliar de topografia | E19: mês | F19: =IF(B19="SICRO-PE",VLOOKUP(C19,'SICRO ABR-23'!A:F,4,0),IF(B19="TC-DNIT",VLOOKUP(C19,'DNIT 23'!A:C,4,0))) -> 2255 | G19: =IF(B19="SICRO-PE",VLOOKUP(C19,'SICRO ABR-23'!A:E,5,0),IF(B19="TC-DNIT",VLOOKUP(C19,'DNIT 23'!A:V,23,0))) -> 1.2916 | H19: =F19+G19*F19 -> 5167.56 | I19: =N19*$N$8 -> 24 | J19: =F19*I19 -> 54120 | K19: =F19*G19*I19 -> 69901.39 | L19: =H19*I19 -> 124021.44 | M19: Auxiliar Topo = | N19: 2
A20: 3 | D20: PROFISSIONAIS DE NÍVEL MÉDIO
A21: 3.2 | B21: TC-DNIT | C21: P8027 | D21: Auxiliar de Laboratorio | E21: mês | F21: =IF(B21="SICRO-PE",VLOOKUP(C21,'SICRO ABR-23'!A:F,4,0),IF(B21="TC-DNIT",VLOOKUP(C21,'DNIT 23'!A:D,4,0))) -> 1609.67 | G21: =IF(B21="SICRO-PE",VLOOKUP(C21,'SICRO ABR-23'!A:E,5,0),IF(B21="TC-DNIT",VLOOKUP(C21,'DNIT 23'!A:Y,23,0))) -> 1.5134 | H21: =F21+G21*F21 -> 4045.74 | I21: =N21*$N$8 -> 24 | J21: =F21*I21 -> 38632.08 | K21: =F21*G21*I21 -> 58465.79 | L21: =H21*I21 -> 97097.76 | M21: Aux. Laboratorista = | N21: 2
A22: 3.3 | B22: TC-DNIT | C22: P8098 | D22: =IF(B22="SICRO-PE",VLOOKUP(C22,'SICRO ABR-23'!A:F,2,0),IF(B22="TC-DNIT",VLOOKUP(C22,'DNIT 23'!A:V,2,0))) -> Laboratorista | E22: mês | F22: =IF(B22="SICRO-PE",VLOOKUP(C22,'SICRO ABR-23'!A:F,4,0),IF(B22="TC-DNIT",VLOOKUP(C22,'DNIT 23'!A:D,4,0))) -> 2146.23 | G22: =IF(B22="SICRO-PE",VLOOKUP(C22,'SICRO ABR-23'!A:E,5,0),IF(B22="TC-DNIT",VLOOKUP(C22,'DNIT 23'!A:Y,23,0))) -> 1.317 | H22: =F22+G22*F22 -> 4972.81 | I22: =N22*$N$8 -> 24 | J22: =F22*I22 -> 51509.52 | K22: =F22*G22*I22 -> 67838.04 | L22: =H22*I22 -> 119347.44 | M22: Laboratorista = | N22: 2
A24: TOTAIS (R$) | I24: =SUM(I14:I22) -> 216 | J24: =SUM(J14:J22) -> 1058609.04 | K24: =SUM(K14:K22) -> 1036470.61
A26: TOTAL DOS SALÁRIOS DA EQUIPE TÉCNICA (R$) | L26: =SUM(L14:L22) -> 2095079.52
A27: OBSERVAÇÃO:
A28: 1 - CÓDIGOS REFERENTES AO SISTEMA DE CUSTOS SICRO (ABR/2022)
A29: 2 - DESCRIÇÃO DO PROFISSIONAL/FUNÇÃO
A30: 3 - UNIDADE DE REFERÊNCIA PARA CÁLCULO DO CUSTO
A31: 4- SALÁRIO NA BASE DE DADOS REFERENCIAL
A32: 5 - ENCARGOS TOTAIS (SOCIAIS, COMPLEMENTARES E ADICIONAIS) NA BASE DE DADOS REFERENCIAL
A33: 6- CUSTO UNITÁRIO
A34: 7 - QUANTIDADE TOTAL DE FUNCIONÁRIOS POR TIPO POR 12 MESES
A35: 8 - CUSTO TOTAL DOS SALÁRIOS SEM ENCARGOS POR 12 MESES SEM DESPESAS INDIRETAS, LUCRO E TRIBUTOS
A36: 9 - CUSTO TOTAL DOS ENCARGOS POR 12 MESES SEM DESPESAS INDIRETAS, LUCRO E TRIBUTOS
A37: 10 - CUSTO TOTAL DOS SALÁRIOS COM ENCARGOS POR 12 MESES SEM DESPESAS INDIRETAS, LUCRO E TRIBUTOS
A38: 11 - TC-DNIT = TABELA CONSULTORIA DNIT

Sheet FSUP-II
C1: =FSUP!H1 -> Ministério da Integração e do Desenvolvimento Regional - MIDR
C2: =FSUP!H2 -> Companhia de Desenvolvimento dos Vales do São Francisco e do Parnaíba
C3: =FSUP!H3 -> 3ª Superintendência Regional da Codevasf
A5: VIAGENS DA EQUIPE TÉCNICA | J5: CODIGO:
J6: FSUP-II | L6: Período = | M6: 12 | N6: meses
A7: OBJETO: | J7: EDITAL:
A8: =FSUP!A8 -> SERVIÇOS TOPOGRÁFICOS E DE APOIO À FISCALIZAÇÃO E SUPERVISÃO TÉCNICA DE INSTRUMENTOS NA ÁREA DE ABRANGÊNCIA DA CODEVASF, NO ESTADO DE PERNAMBUCO
C9: QTD | D9: DIAS TRABALHADOS | F9: DIÁRIAS (6) | J9: PERÍODO | K9: CUSTO
A10: ITEM | B10: PROFISSÃO/FUNÇÃO | C10: FUNC. | D10: EM CAMPO NO MÊS | E10: ROTEIRO | F10: A/T | G10: QTD | H10: HOSPEDAGEM + ALIMENTAÇÃO | J10: (meses) | K10: TOTAL
B11: (1) | C11: (2) | D11: (3) | E11: (4) | F11: (5) | G11: (noites/mês) | H11: R$/noite | I11: TOTAL | J11: (7) | K11: (8)
A12: 1 | B12: EQUIPE DE TOPOGRAFIA | M12: Hospedagem + Alimentação
A13: 1.1 | B13: Topógrafo | C13: ='FSUP-I'!N18 -> 2 | D13: 22 | E13: Deslocamentos da área de atuação da 3ª SR transportados nos veículos do contrato | F13: T | G13: ='Memória de Cálculo'!AA13*C13 -> 34 | H13: =$M$13 -> 218.1 | I13: =G13*H13 -> 7415.4 | J13: =$M$6 -> 12 | K13: =J13*(I13) -> 88984.8 | M13: 218.1
A14: 1.2 | B14: Auxiliar de Topografia | C14: ='FSUP-I'!N19 -> 2 | D14: 22 | E14: Deslocamentos da área de atuação da 3ª SR transportados nos veículos do contrato | F14: T | G14: ='Memória de Cálculo'!AA14*C14 -> 34 | H14: =$M$13 -> 218.1 | I14: =G14*H14 -> 7415.4 | J14: =$M$6 -> 12 | K14: =J14*(I14) -> 88984.8
A15: 2
A16: 2.2 | B16: Engenheiro (Exp. Pavimentação) | C16: 2 | D16: 15 | E16: Deslocamentos da área de atuação da 3ª SR transportados nos veículos do contrato | F16: T | G16: ='Memória de Cálculo'!AA10*C16 -> 24 | H16: =$M$13 -> 218.1 | I16: =G16*H16 -> 5234.4 | J16: =$M$6 -> 12 | K16: =J16*(I16) -> 62812.8
A17: 2.3 | B17: Engenheiro (Orçamentista) | C17: 2 | D17: 5 | E17: Deslocamentos da área de atuação da 3ª SR transportados nos veículos do contrato | F17: T | G17: =C17*'Memória de Cálculo'!AA9 -> 8 | H17: =$M$13 -> 218.1 | I17: =G17*H17 -> 1744.8 | J17: =$M$6 -> 12 | K17: =J17*(I17) -> 20937.6
A18: 2.5 | B18: Técnico especializado (Estradas) | C18: 4 | D18: 15 | E18: Deslocamentos da área de atuação da 3ª SR transportados nos veículos do contrato | F18: T | G18: ='Memória de Cálculo'!AA11*C18 -> 48 | H18: =$M$13 -> 218.1 | I18: =G18*H18 -> 10468.8 | J18: =$M$6 -> 12 | K18: =J18*(I18) -> 125625.6
A19: 2.7 | B19: Auxiliar de Laboratorista | C19: 2 | D19: 14 | E19: Deslocamentos da área de atuação da 3ª SR transportados nos veículos do contrato | F19: T | G19: ='Memória de Cálculo'!AA17*C19 -> 10 | H19: =$M$13 -> 218.1 | I19: =G19*H19 -> 2181 | J19: =$M$6 -> 12 | K19: =J19*(I19) -> 26172
A20: 2.9 | B20: Laboratorista | C20: ='FSUP-I'!N22 -> 2 | D20: 14 | E20: Deslocamentos da área de atuação da 3ª SR transportados nos veículos do contrato | F20: T | G20: ='Memória de Cálculo'!AA18*C20 -> 10 | H20: =$M$13 -> 218.1 | I20: =G20*H20 -> 2181 | J20: =$M$6 -> 12 | K20: =J20*(I20) -> 26172
A21: TOTAIS | G21: =SUM(G13:G20) -> 168 | H21: =G21*$M$13 -> 36640.8 | I21: =SUM(I13:I20) -> 36640.8
M22: Custo com BDI
A23: TOTAIS DE CUSTOS E DE PREÇOS DE PASSAGENS E DIÁRIAS (R$) | I23: =SUM(I12:I20) -> 36640.8 | K23: =SUM(K13:K20) -> 439689.6 | M23: =K23*1.4496 -> 637374.04
A24: OBSERVAÇÃO:
A25: 1 - RELAÇÃO DE PROFISSIONAIS
A26: 2 - QUANTIDADE DE FUNCIONÁRIOS POR TIPO DE PROFISSIONAL
A27: 3 - DIAS ÚTEIS DEDICADOS A TRABALHOS FORA DO ESCRITÓRIO (EM CAMPO)
A28: 4 - DESCRIÇÃO DOS ROTEIROS DE VIAGEM ESPERADOS | G28: =G21*12 -> 2016
A29: 5 - INDICAR (A) PARA AS PASSAGENS AÉREAS E (T) PARA AS TERRESTRES | G29: =G28*H20 -> 439689.6
A30: 6 - DESCRIÇÃO DAS DIÁRIAS E O CUSTO POR TIPO (ALIMENTAÇÃO E HOSPEDAGEM) | G30: =G29*(1+44.96%) -> 637374.04 | J30: =J16+J17+J18+J19+J20+J13+J14 -> 84
A31: 7 - PERÍODO ESTIMADO DE VIGÊNCIA DO CONTRATO
A32: 8 - CUSTO TOTAL POR 12 MESES SEM DESPESAS INDIRETAS, LUCRO E TRIBUTOS
A33: 9 - O CUSTO DAS DIÁRIAS DE ALIMENTAÇÃO E HOSPEDAGEM SE BASEIA NA TABELA DE DIÁRIAS DA CODEVASF

Sheet FSUP-III
E1: =FSUP!H1 -> Ministério da Integração e do Desenvolvimento Regional - MIDR
E2: =FSUP!H2 -> Companhia de Desenvolvimento dos Vales do São Francisco e do Parnaíba
E3: =FSUP!H3 -> 3ª Superintendência Regional da Codevasf
B5: DESPESAS OPERACIONAIS | I5: CODIGO:
I6: FSUP-III
B7: PROJETO: | F7: REFERÊNCIA | I7: EDITAL:
B8: =FSUP!A8 -> SERVIÇOS TOPOGRÁFICOS E DE APOIO À FISCALIZAÇÃO E SUPERVISÃO TÉCNICA DE INSTRUMENTOS NA ÁREA DE ABRANGÊNCIA DA CODEVASF, NO ESTADO DE PERNAMBUCO | F8: Relatório de Custos Gerais e BDI DNIT - Ago/2022
B9: ITEM | C9: BASE | D9: CÓDIGO | E9: DESCRIÇÃO | F9: UNID. | G9: QUANT. | H9: CUSTOS (R$) (3)
H10: UNITÁRIO | I10: TOTAL
B11: 1. | E11: VEÍCULOS (1) | J11: Período = | K11: 12 | L11: meses
B12: 1.1 | E12: Área de atuação da Codevasf/PE
B13: 1.1.1 | C13: TC-DNIT | D13: E8889 | E13: Veículo leve - 53 kW (sem motorista) | F13: UND X MÊS | G13: =K13*$K$11 -> 24 | H13: ='Memória de Cálculo'!AF33 -> 2835.83 | I13: =ROUND(H13*G13,2) -> 68059.92 | J13: Veículo = | K13: 2 | N13: =8*20*12 -> 1920
B14: 1.1.2 | C14: TC-DNIT | D14: E8891 | E14: Veículo leve picape 4x4 - 147 kW (sem motorista) | F14: UND X MÊS | G14: =K14*$K$11 -> 12 | H14: ='Memória de Cálculo'!AF41 -> 8979.65 | I14: 107755.8 | J14: Veículo = | K14: 1 | N14: =8*22*12 -> 2112
B15: 1.2 | E15: Área de atuação da 3ª SR
B16: 1.2.1 | C16: TC-DNIT | D16: E8889 | E16: Veículo leve - 53 kW (sem motorista) | F16: UND X MÊS | G16: =K16*$K$11 -> 24 | H16: ='Memória de Cálculo'!AF33 -> 2835.83 | I16: 68059.92 | J16: Veículo = | K16: 2 | N16: =8*15*12 -> 1440
B17: 1.2.1 | C17: TC-DNIT | D17: E8891 | E17: Veículo leve picape 4x4 - 147 kW (sem motorista) | F17: UND X MÊS | G17: =K17*$K$11 -> 12 | H17: ='Memória de Cálculo'!AF41 -> 8979.65 | I17: 107755.8 | J17: Veículo = | K17: 1
B18: TOTAL DOS CUSTOS DOS VEÍCULOS (R$) | I18: =SUM(I13:I17) -> 351631.44
B20: 2. | E20: MANUTENÇÃO E ADMINISTRAÇÃO DE ESCRITÓRIO (2)
B21: 2.1 | C21: TC-DNIT | D21: B8951 | E21: IMÓVEL COMERCIAL (2,60 do CMCC - SINAPI) | F21: M² X MÊS | G21: =6*K21*$K$11 -> 1296 | H21: =IF(C21="SICRO-PE",VLOOKUP(D21,'SICRO EQUIP'!A:J,10,0),IF(C21="TC-DNIT",VLOOKUP(D21,'DNIT EQUIP'!B:F,5,0))) -> 46.78 | I21: =ROUND(G21*H21,2) -> 60626.88 | J21: Equipe mínima = | K21: =SUM('Memória de Cálculo'!AE8:AE15) -> 18
B22: 2.2 | C22: TC-DNIT | D22: B8953 | E22: MOBILIÁRIO - ESCRITÓRIO | F22: FUNCIONÁRIOS X MÊS | G22: ='FSUP-I'!I24 -> 216 | H22: =IF(C22="SICRO-PE",VLOOKUP(D22,'SICRO EQUIP'!A:J,10,0),IF(C22="TC-DNIT",VLOOKUP(D22,'DNIT EQUIP'!B:F,5,0))) -> 510.96 | I22: =ROUND(G22*H22,2) -> 110367.36
B23: 2.3 | C23: TC-DNIT | D23: B8959 | E23: CUSTOS DIVERSOS - ESCRITÓRIO | F23: FUNCIONÁRIOS X MÊS | G23: ='FSUP-I'!I24 -> 216 | H23: =IF(C23="SICRO-PE",VLOOKUP(D23,'SICRO EQUIP'!A:J,10,0),IF(C23="TC-DNIT",VLOOKUP(D23,'DNIT EQUIP'!B:F,5,0))) -> 131.32 | I23: 28365.12
B24: 2.4 | C24: TC-DNIT | D24: B8958 | E24: TOPOGRAFIA | F24: EQUIPE X MÊS | G24: =K24*$K$11 -> 24 | H24: =IF(C24="SICRO-PE",VLOOKUP(D24,'SICRO EQUIP'!A:J,10,0),IF(C24="TC-DNIT",VLOOKUP(D24,'DNIT EQUIP'!B:F,5,0))) -> 3134.16 | I24: 75219.84 | J24: Equipes de topografia = | K24: 2
B25: 2.5 | C25: TC-DNIT | D25: B8955 | E25: LABORATÓRIO DE ASFALTO | F25: UNIDADE X MÊS | G25: =K25*$K$11 -> 24 | H25: =IF(C25="SICRO-PE",VLOOKUP(D25,'SICRO EQUIP'!A:J,10,0),IF(C25="TC-DNIT",VLOOKUP(D25,'DNIT EQUIP'!B:F,5,0))) -> 5400.53 | I25: 129612.72 | J25: Laboratório de Asfalto = | K25: 2
B26: 2.6 | C26: TC-DNIT | D26: B8957 | E26: LABORATÓRIO DE SOLOS | F26: UNIDADE X MÊS | G26: =K26*K11 -> 24 | H26: =IF(C26="SICRO-PE",VLOOKUP(D26,'SICRO EQUIP'!A:J,10,0),IF(C26="TC-DNIT",VLOOKUP(D26,'DNIT EQUIP'!B:F,5,0))) -> 4311.34 | I26: 103472.16 | J26: Laboratório de Solos = | K26: 2
B27: TOTAL DOS CUSTOS DE MANUTENÇÃO E ADMINISTRAÇÃO DE ESCRITÓRIO (R$) | I27: =SUM(I21:I26) -> 507664.08
B29: TOTAL DAS DESPESAS OPERACIONAIS (R$) | I29: =I27+I18 -> 859295.52
B30: OBSERVAÇÃO:
B31: 1. O CUSTO HORÁRIO DOS VEÍCULOS INCLUI DESPESAS COM MANUTENÇÃO E COMBUSTÍVEL, CONFORME A COMPOSIÇÃO DE CUSTO DA TABELA DE CONSUTORIA DO DNIT
B32: 2. VER DESCRIÇÃO DOS ITENS ABAIXO NA TABELA DE CONSULTORIA DO DNIT - CESTAS DE MOBILIÁRIO, DE INSTALAÇÕES E CUSTOS DIVERSOS
B33: 3. CUSTO DO ITEM SEM LUCRO E DESPESAS FISCAIS
B34: 3. CUSTO TOTAL POR 12 MESES SEM DESPESAS INDIRETAS, LUCRO E TRIBUTOS
B35: 4. OS ITENS RELATIVOS AO MOBILIÁRIO E AOS CUSTOS DIVERSOS DO ESCRITÓRIO SERVIRÃO PARA COBRIR AS DESPESAS COM OS PROFISSIONAIS DISPONIBILIZADOS AO ESCRITÓRIO DE APOIO TÉCNICO DE IRECÊ E A UNIDADE DESCENTRALIZADA DE VITÓRIA DA CONQUISTA.
B36: 5. NÃO SERÁ EXIGIDO ENTREGA DE DOCUMENTOS IMPRESSOS. A VERSÃO DIGITAL SERÁ ACEITA PARA MEDIÇÃO DOS SERVIÇOS, CONFORME CRITÉRIOS ESTABELECIDOS EM EDITAL

Sheet FSUP-IV
C1: =FSUP!H1 -> Ministério da Integração e do Desenvolvimento Regional - MIDR
C2: =FSUP!H2 -> Companhia de Desenvolvimento dos Vales do São Francisco e do Parnaíba
C3: =FSUP!H3 -> 3ª Superintendência Regional da Codevasf
A5: CRONOGRAMA FINANCEIRO | H5: CODIGO:
H6: FSUP-IV
A7: OBJETO: | H7: EDITAL:
A8: =FSUP!A8 -> SERVIÇOS TOPOGRÁFICOS E DE APOIO À FISCALIZAÇÃO E SUPERVISÃO TÉCNICA DE INSTRUMENTOS NA ÁREA DE ABRANGÊNCIA DA CODEVASF, NO ESTADO DE PERNAMBUCO
A9: Nº | B9: TAREFA | C9: RELATÓRIO / SERVIÇO DE CAMPO | F9: MESES CORRIDOS | G9: VALOR DA PARCELA (R$)
A10: 1 | B10: APOIO À FISCALIZAÇÃO E SUPERVISÃO TÉCNICA DE OBRAS | C10: RELATÓRIO MENSAL 01 | F10: 30 | G10: =FSUP!#REF!*(1+0.1)*(1+0.1662) ->  | H10: =FSUP!$N$44 -> 410003.03
A11: 2 | B11: APOIO À FISCALIZAÇÃO E SUPERVISÃO TÉCNICA DE OBRAS | C11: RELATÓRIO MENSAL 02 | F11: =F10+30 -> 60 | G11: =(FSUP!#REF!-FSUP!#REF!*(1+0.1)*(1+0.1662))*8/100 ->  | H11: =FSUP!$N$44 -> 410003.03
A12: 3 | B12: APOIO À FISCALIZAÇÃO E SUPERVISÃO TÉCNICA DE OBRAS | C12: RELATÓRIO MENSAL 03 | F12: =F11+30 -> 90 | G12: =(FSUP!#REF!-FSUP!#REF!*(1+0.1)*(1+0.1662))*5/100 ->  | H12: =FSUP!$N$44 -> 410003.03
A13: 4 | B13: APOIO À FISCALIZAÇÃO E SUPERVISÃO TÉCNICA DE OBRAS | C13: RELATÓRIO MENSAL 04 | F13: =F12+30 -> 120 | G13: =(FSUP!#REF!-FSUP!#REF!*(1+0.1)*(1+0.1662))*7.5/100 ->  | H13: =FSUP!$N$44 -> 410003.03
A14: 5 | B14: APOIO À FISCALIZAÇÃO E SUPERVISÃO TÉCNICA DE OBRAS | C14: RELATÓRIO MENSAL 05 | F14: =F13+30 -> 150 | G14: =(FSUP!#REF!-FSUP!#REF!*(1+0.1)*(1+0.1662))*7.5/100 ->  | H14: =FSUP!$N$44 -> 410003.03
A15: 6 | B15: APOIO À FISCALIZAÇÃO E SUPERVISÃO TÉCNICA DE OBRAS | C15: RELATÓRIO MENSAL 06 | F15: =F14+30 -> 180 | G15: =(FSUP!#REF!-FSUP!#REF!*(1+0.1)*(1+0.1662))*9/100 ->  | H15: =FSUP!$N$44 -> 410003.03
A16: 7 | B16: APOIO À FISCALIZAÇÃO E SUPERVISÃO TÉCNICA DE OBRAS | C16: RELATÓRIO MENSAL 07 | F16: 210 | G16: =(FSUP!#REF!-FSUP!#REF!*(1+0.1)*(1+0.1662))*9/100 ->  | H16: =FSUP!$N$44 -> 410003.03
A17: 8 | B17: APOIO À FISCALIZAÇÃO E SUPERVISÃO TÉCNICA DE OBRAS | C17: RELATÓRIO MENSAL 08 | F17: 240 | G17: =(FSUP!#REF!-FSUP!#REF!*(1+0.1)*(1+0.1662))*9/100 ->  | H17: =FSUP!$N$44 -> 410003.03
A18: 9 | B18: APOIO À FISCALIZAÇÃO E SUPERVISÃO TÉCNICA DE OBRAS | C18: RELATÓRIO MENSAL 09 | F18: 270 | G18: =(FSUP!#REF!-FSUP!#REF!*(1+0.1)*(1+0.1662))*9/100 ->  | H18: =FSUP!$N$44 -> 410003.03
A19: 10 | B19: APOIO À FISCALIZAÇÃO E SUPERVISÃO TÉCNICA DE OBRAS | C19: RELATÓRIO MENSAL 10 | F19: 300 | G19: =(FSUP!#REF!-FSUP!#REF!*(1+0.1)*(1+0.1662))*9/100 ->  | H19: =FSUP!$N$44 -> 410003.03
A20: 11 | B20: APOIO À FISCALIZAÇÃO E SUPERVISÃO TÉCNICA DE OBRAS | C20: RELATÓRIO MENSAL 11 | F20: 330 | G20: =(FSUP!#REF!-FSUP!#REF!*(1+0.1)*(1+0.1662))*9/100 ->  | H20: =FSUP!$N$44 -> 410003.03
A21: 12 | B21: APOIO À FISCALIZAÇÃO E SUPERVISÃO TÉCNICA DE OBRAS | C21: RELATÓRIO MENSAL 12 | F21: 360 | H21: =FSUP!$N$44 -> 410003.03
A22: TOTAL | G22: =SUM(G10:G21) ->  | H22: =SUM(H10:H21) -> 4920036.36
A23: OBSERVAÇÃO: O relatório Mensal é mero instrumento de registro das atividades desenvolvidas pela(s) equipe(s) de supervisão e os valores
A24: aqui dispostos são meras estimativas de desembolso, cabendo ao Fiscal da Supervisora coordenar e medir os serviços efetivamentes prestados
A25: na supervisão das atividades da(s) Executora(s) previstos no tópico 5 do Anexo III da IS DG DNIT 3/2016 comprovados mediante relatórios,
A26: pareceres e laudos correspondentes.

Sheet Memória de Cálculo
B1: MINISTÉRIO DA INTEGRAÇÃO E DO DESENVOLVIMENTO REGIONAL | AD1: MINISTÉRIO DO DESENVOLVIMENTO REGIONAL
B2: COMPANHIA DE DESENVOLVIMENTO DOS VALES DO SÃO FRANCISCO E PARNAÍBA | AD2: COMPANHIA DE DESENVOLVIMENTO DOS VALES DO SÃO FRANCISCO E PARNAÍBA
B3: 3ª SUPERINTENDÊNCIA REGIONAL - Petrolina/PE | AD3: 3ª SUPERINTENDÊNCIA REGIONAL - Petrolina/PE
A5: Item | B5: Profissional | C5: Mês de Referência - Dias úteis | Y5: DIAS TRABALHADOS EM | AA5: PERNOITES | AC5: Memória de cálculo mensal (22 DIAS ÚTEIS)
C6: Semana 1 | H6: Semana 2 | M6: Semana 3 | R6: Semana 4 | W6: Início da Semana 5
C7: 1 | D7: 2 | E7: 3 | F7: 4 | G7: 5 | H7: 6 | I7: 7 | J7: 8 | K7: 9 | L7: 10 | M7: 11 | N7: 12 | O7: 13 | P7: 14 | Q7: 15 | R7: 16 | S7: 17 | T7: 18 | U7: 19 | V7: 20 | W7: 21 | X7: 22 | Y7: Escritório | Z7: Campo | AA7: Campo | AC7: Itens | AD7: Descrição | AE7: Quantidade | AF7: Unidade
A8: 1 | B8: ÁREA DE ATUAÇÃO DA 3ª SR | AC8: Equipe | AD8: Engenheiro | AE8: ='FSUP-I'!N14 -> 4 | AF8: un.
A9: 1.1 | B9: Engenheiro (Orçamentista) | C9: Visitas Técnicas | Y9: =22-Z9 -> 17 | Z9: 5 | AA9: 4 | AD9: Técnico especializado | AE9: ='FSUP-I'!N15 -> 4 | AF9: un.
A10: 1.2 | B10: Engenheiro | H10: Fiscalização/Supervisão Técnica | T10: Medição | Y10: 7 | Z10: 15 | AA10: =4*3 -> 12 | AD10: Desenhista/Cadista | AE10: ='FSUP-I'!N17 -> 2 | AF10: un.
A11: 1.3 | B11: Técnico especializado | H11: Fiscalização/Supervisão Técnica | T11: Medição | Y11: =22-Z11 -> 7 | Z11: 15 | AA11: =4*3 -> 12 | AD11: Topógrafo | AE11: ='FSUP-I'!N18 -> 2 | AF11: un.
A12: 1.4 | B12: Desenhista/Cadista | Y12: =22-Z12 -> 22 | Z12: 0 | AA12: 0 | AD12: Auxiliar de Topografia | AE12: ='FSUP-I'!N19 -> 2 | AF12: un.
A13: 1.5 | B13: Topógrafo | C13: Serviços topográficos | T13: Medição | Y13: 0 | Z13: 22 | AA13: =4*4+1 -> 17 | AD13: Motorista | AE13: 0 | AF13: un.
A14: 1.6 | B14: Auxiliar de Topografia | C14: Serviços topográficos | T14: Medição | Y14: 0 | Z14: 22 | AA14: =4*4+1 -> 17 | AD14: Auxiliar de Laboratorista | AE14: 2 | AF14: un.
A15: 1.7 | B15: Motorista | C15: Acompanhar equipe de topografia | Y15: 0 | Z15: 22 | AA15: =4*4+1 -> 17 | AD15: Laboratorista | AE15: ='FSUP-I'!N22 -> 2 | AF15: un.
A16: 1.8 | B16: Auxiliar Administrativo | Y16: 22 | Z16: 0 | AA16: 0 | AC16: Viagens | AD16: Diárias | AE16: ='FSUP-II'!G21 -> 168 | AF16: un.
B17: Auxiliar de Laboratorista | C17: Amostragem | H17: Amostragem | M17: Amostragem | R17: Amostragem | W17: Amostragem | Y17: 8 | Z17: =22-Y17 -> 14 | AA17: 5
A18: 1.9 | B18: Laboratorista | C18: Amostragem | H18: Amostragem | M18: Amostragem | R18: Amostragem | W18: Amostragem | Y18: 8 | Z18: =22-Y18 -> 14 | AA18: 5 | AC18: Equipamentos | AD18: Veículo leve | AE18: ='FSUP-III'!K13+'FSUP-III'!K16 -> 4 | AF18: un.
A19: LEGENDA: | AD19: Veículo leve pick-up | AE19: ='FSUP-III'!K14+'FSUP-III'!K17 -> 2 | AF19: un.
B20: Trabalho em escritório | AD20: Cesta de Instalações de Topografia | AE20: ='FSUP-III'!K24 -> 2 | AF20: un.
B21: Trabalho em campo | AD21: Laboratório de asfalto | AE21: ='FSUP-III'!K26 -> 2 | AF21: un.
AD22: Laboratório de Solos | AE22: ='FSUP-III'!K26 -> 2 | AF22: un.
AC23: Instalações | AD23: Mobiliário | AE23: 2 | AF23: un.
AD24: Cesta de Custos de Escritório | AE24: 2 | AF24: un.
AD25: Escritório | AE25: 2 | AF25: un.
AC28: CUSTO MENSAL DE E8889 VEÍCULO LEVE - 53 kW (sem motorista)
AD30: h | AE30: R$/h | AF30: Total
AC31: Horas Operativas | AD31: 66 | AE31: ='DNIT EQUIP'!E6 -> 31.83 | AF31: =AD31*AE31 -> 2100.78 | AG31: =AD31/$AD$33 -> 0.36
AC32: Horas Improdutivas | AD32: 116.49 | AE32: ='DNIT EQUIP'!F6 -> 6.31 | AF32: =AD32*AE32 -> 735.05 | AG32: =AD32/$AD$33 -> 0.64
AC33: Horas globais/mês trabalháveis (*) | AD33: =AD31+AD32 -> 182.49 | AF33: =ROUND(AF31+AF32,2) -> 2835.83
AC36: CUSTO MENSAL DE E8891 VEÍCULO LEVE picape 4x4 - 147 kW (sem motorista)
AD38: h | AE38: R$/h | AF38: Total
AC39: Horas Operativas | AD39: 66 | AE39: ='DNIT EQUIP'!E7 -> 86.6 | AF39: =AD39*AE39 -> 5715.6 | AG39: =AD39/$AD$33 -> 0.36
AC40: Horas Improdutivas | AD40: 116.49 | AE40: ='DNIT EQUIP'!F7 -> 28.02 | AF40: =AD40*AE40 -> 3264.05 | AG40: =AD40/$AD$33 -> 0.64
AC41: Horas globais/mês trabalháveis (*) | AD41: =AD39+AD40 -> 182.49 | AF41: =ROUND(AF39+AF40,2) -> 8979.65
AC44: (*) Fonte: Manual de Custos de Infraestrutura de Transportes - Volume 01, pág. 53

Sheet BDI
B1: MINISTÉRIO DA INTEGRAÇÃO E DO DESENVOLVIMENTO REGIONAL
B2: COMPANHIA DE DESENVOLVIMENTO DOS VALES DO SÃO FRANCISCO E PARNAÍBA
B3: 3ª SUPERINTENDÊNCIA REGIONAL - Petrolina/PE
A4: PLANILHA DE DETALHAMENTO DO BDI
A6: OBJETO: | B6: =FSUP!A8 -> SERVIÇOS TOPOGRÁFICOS E DE APOIO À FISCALIZAÇÃO E SUPERVISÃO TÉCNICA DE INSTRUMENTOS NA ÁREA DE ABRANGÊNCIA DA CODEVASF, NO ESTADO DE PERNAMBUCO
A8: MEMÓRIA DE CALCULO DO BDI DOS SERVIÇOS - NÃO DESONERADO
B11: TABELA DE PREÇOS DE CONSULTORIA (desde 16/08/2022)
B12: Benefícios e Despesas Indiretas
B13: Despesas Indiretas | C13: % sobre PV | D13: % sobre CD
B15: Administração Central | C15: 6.9 | D15: 10
B16: Despesas Financeiras | C16: 0.99 | D16: 1.44
B17: Riscos | C17: 0.5 | D17: 0.72
B18: Seguros e Garantias Contratuais | C18: 0.1 | D18: 0.14
B20: Lucro | C20: 8.28 | D20: 12
B22: PIS | C22: 1.65 | D22: 2.39
B23: COFINS | C23: 7.6 | D23: 11.02
B24: ISSQN | C24: 5 | D24: 7.25
B26: FATOR K (ou, "BDI", CONFORME TC-DNIT) | C26: =SUM(C15:C24) -> 31.02 | D26: =SUM(D15:D24) -> 44.96

Sheet Encargos Sociais
B2: MINISTÉRIO DA INTEGRAÇÃO E DO DESENVOLVIMENTO REGIONAL
B3: COMPANHIA DE DESENVOLVIMENTO DOS VALES DO SÃO FRANCISCO E PARNAÍBA
B4: 3ªSUPERINTENDÊNCIA REGIONAL - Petrolina/PE
A6: DETALHAMENTO DOS ENCARGOS SOCIAIS (%) - sem desoneração
C8: SEM DESONERAÇÃO - MENSALISTA
C9: Auxiliar Administrativo (P9806) | D9: Auxiliar de topografia (P9950) | E9: Engenheiro (P9812) | F9: Engenheiro supervisor (P9819) | G9: Técnico especializado (P9867) | H9: Topógrafo (P9949) | I9: Motorista de veículo leve (P9948)
A10: GRUPO A
A11: A1 | B11: Previdência Social | C11: 20 | D11: 20 | E11: 20 | F11: 20 | G11: 20 | H11: 20 | I11: 20
A12: A2 | B12: FGTS | C12: 8 | D12: 8 | E12: 8 | F12: 8 | G12: 8 | H12: 8 | I12: 8
A13: A3 | B13: Salário Educação | C13: 2.5 | D13: 2.5 | E13: 2.5 | F13: 2.5 | G13: 2.5 | H13: 2.5 | I13: 2.5
A14: A4 | B14: SESI | C14: 1.5 | D14: 1.5 | E14: 1.5 | F14: 1.5 | G14: 1.5 | H14: 1.5 | I14: 1.5
A15: A5 | B15: SENAI/SEBRAE | C15: 1.6 | D15: 1.6 | E15: 1.6 | F15: 1.6 | G15: 1.6 | H15: 1.6 | I15: 1.6
A16: A6 | B16: INCRA | C16: 0.2 | D16: 0.2 | E16: 0.2 | F16: 0.2 | G16: 0.2 | H16: 0.2 | I16: 0.2
A17: A7 | B17: Seguro contra Risco e Acidente de Trabalho (INSS) | C17: 3 | D17: 3 | E17: 3 | F17: 3 | G17: 3 | H17: 3 | I17: 3
A18: A8 | B18: Seconci | C18: - | D18: 0.11 | E18: 0.11 | F18: 0.11 | G18: 0.11 | H18: 0.11 | I18: 0.11
A19: A | B19: Total | C19: =ROUND(SUM(C11:C18),2) -> 36.8 | D19: 36.91 | E19: 36.91 | F19: 36.91 | G19: 36.91 | H19: 36.91 | I19: 36.91
A20: GRUPO B
A21: B1 | B21: Repouso Semanal Remunerado | C21: 0 | D21: 0 | E21: 0 | F21: 0 | G21: 0 | H21: 0 | I21: 0
A22: B2 | B22: Feriados | C22: 0 | D22: 0 | E22: 0 | F22: 0 | G22: 0 | H22: 0 | I22: 0
A23: B3 | B23: Auxílio-enfermidade | C23: 5.87 | D23: 5.7 | E23: 8.33 | F23: 8.33 | G23: 7.07 | H23: 5.7 | I23: 7.2
A24: B4 | B24: 13° salário | C24: 0.9 | D24: 0.91 | E24: 0.91 | F24: 0.91 | G24: 0.91 | H24: 0.91 | I24: 0.91
A25: B5 | B25: Licença-paternidade | C25: 0.04 | D25: 0.04 | E25: 0.01 | F25: 0.04 | G25: 0.04 | H25: 0.04 | I25: 0.04
A26: B6 | B26: Faltas Justificadas | C26: 0.06 | D26: 0.1 | E26: 0.08 | F26: 0.08 | G26: 0.08 | H26: 0.1 | I26: 0.09
A27: B7 | B27: Auxílio Acidente de Trabalho | C27: 9.25 | D27: 9.24 | E27: 9.24 | F27: 9.24 | G27: 9.24 | H27: 9.24 | I27: 9.24
A28: B8 | B28: Férias Gozadas | C28: 0.74 | D28: 0.74 | E28: 0.74 | F28: 0.74 | G28: 0.74 | H28: 0.74 | I28: 0.74
A29: B9 | B29: Férias em Licença Maternidade | C29: 0.12 | D29: 0 | E29: 0.04 | F29: 0.04 | G29: 0.07 | H29: 0 | I29: 0
A30: B | B30: Total | C30: =ROUND(SUM(C21:C29),2) -> 16.98 | D30: 16.73 | E30: 19.35 | F30: 19.38 | G30: 18.15 | H30: 16.73 | I30: 18.22
A31: GRUPO C
A32: C1 | B32: Aviso Prévio Indenizado | C32: 4.32 | D32: 4.43 | E32: 3.16 | F32: 3.16 | G32: 3.84 | H32: 4.43 | I32: 3.74
A33: C2 | B33: Aviso Prévio Trabalhado | C33: 0.12 | D33: 0.12 | E33: 0.07 | F33: 0.07 | G33: 0.1 | H33: 0.12 | I33: 0.09
A34: C3 | B34: Férias Indenizadas+1/3 | C34: 6.45 | D34: 6.62 | E34: 3.99 | F34: 3.99 | G34: 5.26 | H34: 6.62 | I34: 5.12
A35: C4 | B35: Depósito Rescisão Sem Justa Causa | C35: 3.74 | D35: 3.74 | E35: 3.82 | F35: 3.82 | G35: 3.78 | H35: 3.74 | I35: 3.78
A36: C5 | B36: Indenização Adicional (Lei nº 7.238/1984) | C36: 0.93 | D36: 0.93 | E36: 0.93 | F36: 0.93 | G36: 0.93 | H36: 0.93 | I36: 0.93
A37: C | B37: Total | C37: =ROUND(SUM(C32:C36),2) -> 15.56 | D37: 15.84 | E37: 11.97 | F37: 11.97 | G37: 13.91 | H37: 15.84 | I37: 13.66
A38: GRUPO D
A39: D1 | B39: Reincidência de A sobre B | C39: 6.25 | D39: 6.17 | E39: 7.15 | F39: 7.15 | G39: 6.7 | H39: 6.17 | I39: 6.72
A40: D2 | B40: Reincidência de Grupo A sobre Aviso Prévio Trabalhado e Reincidência do FGTS sobre Aviso Prévio Indenizado | C40: 0.39 | D40: 0.4 | E40: 0.28 | F40: 0.28 | G40: 0.34 | H40: 0.4 | I40: 0.33
A42: D | B42: Total | C42: =ROUND(SUM(C39:C40),2) -> 6.64 | D42: =ROUND(SUM(D39:D40),2) -> 6.57 | E42: 7.43 | F42: 7.43 | G42: 7.04 | H42: 6.57 | I42: 7.05
A43: T O T A L (%) | C43: =ROUND(C42+C37+C30+C19,2) -> 75.98 | D43: 76.05 | E43: 75.66 | F43: 75.69 | G43: 76.01 | H43: 76.05 | I43: 75.84

Sheet SICRO ABR-23
A1: CGCIT | B1: SISTEMA DE CUSTOS REFERENCIAIS DE OBRAS - SICRO | G1: DNIT
A3: Pernambuco - Abril/2023
A4: Sem desoneração
A5: Código | B5: Descrição | C5: Unidade | D5: Salário (R$) | E5: Encargos Totais | F5: Custo (R$) | G5: Periculosidade/ Insalubridade
A6: P9801 | B6: Ajudante | C6: h | D6: 6.8879 | E6: 2.067394 | F6: 21.1279 | G6: 0
A7: P9802 | B7: Ajudante especializado | C7: h | D7: 8.2142 | E7: 2.017127 | F7: 24.7832 | G7: 0
A8: P9803 | B8: Almoxarife | C8: mês | D8: 2582.8 | E8: 1.220953 | F8: 5736.2774 | G8: 0
A9: P9804 | B9: Apontador | C9: mês | D9: 1953.6 | E9: 1.37631 | F9: 4642.3592 | G9: 0
A10: P9805 | B10: Armador | C10: h | D10: 10.25 | E10: 1.75223 | F10: 28.2103 | G10: 0
A11: P9806 | B11: Auxiliar administrativo | C11: mês | D11: 1953.6 | E11: 1.37159 | F11: 4633.1382 | G11: 0
A12: P9807 | B12: Bombeiro hidráulico | C12: h | D12: 10.772 | E12: 1.805628 | F12: 30.2222 | G12: 0
A13: P9808 | B13: Carpinteiro | C13: h | D13: 8.88 | E13: 1.854801 | F13: 25.3506 | G13: 0
A14: P9809 | B14: Encarregado administrativo | C14: mês | D14: 3814.417 | E14: 0.972263 | F14: 7523.0335 | G14: 0
A15: P9810 | B15: Eletricista | C15: h | D15: 10.2874 | E15: 1.813187 | F15: 28.9403 | G15: 0
A16: P9811 | B16: Encarregado especializado | C16: mês | D16: 3572.7672 | E16: 1.014049 | F16: 7195.7282 | G16: 0
A17: P9812 | B17: Engenheiro | C17: mês | D17: 12570.149 | E17: 0.82518 | F17: 22942.7845 | G17: 0
A18: P9814 | B18: Operacional | C18: mês | D18: 1432.3199 | E18: 1.506466 | F18: 3590.0611 | G18: 0
A19: P9815 | B19: Jardineiro | C19: h | D19: 7.75 | E19: 1.969929 | F19: 23.0169 | G19: 0
A20: P9819 | B20: Engenheiro supervisor | C20: mês | D20: 12570.149 | E20: 0.82518 | F20: 22942.7845 | G20: 0
A21: P9821 | B21: Pedreiro | C21: h | D21: 8.88 | E21: 1.852876 | F21: 25.3335 | G21: 0
A22: P9822 | B22: Pintor | C22: h | D22: 10.25 | E22: 1.764677 | F22: 28.3379 | G22: 0
A23: P9823 | B23: Serralheiro | C23: h | D23: 9.3101 | E23: 1.824692 | F23: 26.2981 | G23: 0
A24: P9824 | B24: Servente | C24: h | D24: 6.7 | E24: 2.09222 | F24: 20.7178 | G24: 0
A25: P9825 | B25: Soldador | C25: h | D25: 12.2767 | E25: 1.653255 | F25: 32.5732 | G25: 0
A26: P9826 | B26: Chefe setor de finanças | C26: mês | D26: 7889.6392 | E26: 0.874471 | F26: 14788.8998 | G26: 0
A27: P9827 | B27: Vigia | C27: mês | D27: 1391.4995 | E27: 1.843341 | F27: 4373.9574 | G27: 0.3
A28: P9830 | B28: Montador | C28: h | D28: 10.2723 | E28: 1.838015 | F28: 29.1529 | G28: 0 | H28: A
A29: P9833 | B29: Auxiliar de laboratório | C29: mês | D29: 2255 | E29: 1.281238 | F29: 5144.1916 | G29: 0
A30: P9836 | B30: Geólogo | C30: h | D30: 53.0587 | E30: 1.188601 | F30: 116.1243 | G30: 0
A31: P9837 | B31: Oceanógrafo | C31: mês | D31: 4408.8627 | E31: 0.999965 | F31: 8817.571 | G31: 0
A32: P9840 | B32: Encarregado geral | C32: mês | D32: 5248.407 | E32: 0.93096 | F32: 10134.4639 | G32: 0
A33: P9842 | B33: Faxineiro | C33: mês | D33: 1377.2 | E33: 1.636689 | F33: 3631.248 | G33: 0
A34: P9843 | B34: Operador de equipamento leve | C34: h | D34: 8.88 | E34: 1.833131 | F34: 25.1582 | G34: 0
A35: P9844 | B35: Capitão fluvial | C35: mês | D35: 5937.7022 | E35: 0.934517 | F35: 11486.5858 | G35: 0
A36: P9845 | B36: Operador de equipamento pesado | C36: h | D36: 11.74 | E36: 1.652132 | F36: 31.136 | G36: 0
A37: P9846 | B37: Operador de equipamento especial | C37: h | D37: 14.44 | E37: 1.53309 | F37: 36.5778 | G37: 0
A38: P9847 | B38: Perfurador de tubulão | C38: h | D38: 6.8461 | E38: 2.066431 | F38: 20.993 | G38: 0
A39: P9848 | B39: Desenhista | C39: mês | D39: 2830.9126 | E39: 1.145553 | F39: 6073.873 | G39: 0
A40: P9849 | B40: Condutor maquinista fluvial | C40: mês | D40: 2146.73 | E40: 1.253845 | F40: 4838.3966 | G40: 0
A41: P9850 | B41: Copeiro | C41: mês | D41: 1504.8 | E41: 1.527063 | F41: 3802.7244 | G41: 0
A42: P9851 | B42: Médico do trabalho | C42: mês | D42: 9843.5398 | E42: 0.844135 | F42: 18152.8162 | G42: 0
A43: P9852 | B43: Blaster | C43: h | D43: 9.8999 | E43: 2.12771 | F43: 33.9339 | G43: 0.3
A44: P9853 | B44: Pré-marcador | C44: h | D44: 6.8452 | E44: 2.039366 | F44: 20.805 | G44: 0
A45: P9854 | B45: Recepcionista | C45: mês | D45: 1632.0016 | E45: 1.434933 | F45: 3973.8145 | G45: 0
A46: P9855 | B46: Marinheiro de máquinas | C46: mês | D46: 2001.6548 | E46: 1.289828 | F46: 4583.4452 | G46: 0
A47: P9856 | B47: Marinheiro de convés | C47: h | D47: 8.8933 | E47: 1.751391 | F47: 24.4689 | G47: 0
A48: P9857 | B48: Marinheiro de convés - mensalista | C48: mês | D48: 1956.5248 | E48: 1.301273 | F48: 4502.4976 | G48: 0
A49: P9858 | B49: Laboratorista | C49: mês | D49: 3176.8 | E49: 1.130709 | F49: 6768.8363 | G49: 0
A50: P9859 | B50: Trabalhador de via | C50: h | D50: 6.221 | E50: 2.183704 | F50: 19.8058 | G50: 0
A51: P9861 | B51: Selecionador de material pétreo | C51: h | D51: 6.8452 | E51: 2.051937 | F51: 20.8911 | G51: 0
A52: P9864 | B52: Engenheiro de segurança do trabalho | C52: mês | D52: 11149.0872 | E52: 0.839279 | F52: 20506.2819 | G52: 0
A53: P9865 | B53: Técnico em enfermagem | C53: mês | D53: 2911.9894 | E53: 1.178603 | F53: 6344.0688 | G53: 0
A54: P9866 | B54: Motorista de caminhão | C54: h | D54: 11.74 | E54: 1.635685 | F54: 30.9429 | G54: 0
A55: P9867 | B55: Técnico especializado - mensalista | C55: mês | D55: 3150.4021 | E55: 1.140486 | F55: 6743.3915 | G55: 0
A56: P9869 | B56: Encarregado de obras de artes especiais | C56: mês | D56: 3572.7672 | E56: 1.014049 | F56: 7195.7282 | G56: 0
A57: P9870 | B57: Motorista de veículo leve | C57: h | D57: 10.25 | E57: 1.714065 | F57: 27.8191 | G57: 0
A58: P9871 | B58: Motorista de veículo especial | C58: h | D58: 11.7483 | E58: 1.635301 | F58: 30.9603 | G58: 0
A59: P9875 | B59: Encarregado de turma | C59: mês | D59: 2295.995 | E59: 1.276366 | F59: 5226.5249 | G59: 0
A60: P9876 | B60: Técnico de segurança do trabalho | C60: mês | D60: 3093.2 | E60: 1.142388 | F60: 6626.8345 | G60: 0
A61: P9878 | B61: Secretária | C61: mês | D61: 2593.8973 | E61: 1.185133 | F61: 5668.0105 | G61: 0
A62: P9880 | B62: Piloto fluvial | C62: mês | D62: 3276.33 | E62: 1.080258 | F62: 6815.6116 | G62: 0
A63: P9882 | B63: Técnico especializado | C63: h | D63: 14.32 | E63: 1.55376 | F63: 36.5698 | G63: 0
A64: P9883 | B64: Chefe do setor administrativo | C64: mês | D64: 3814.411 | E64: 0.972263 | F64: 7523.0216 | G64: 0
A65: P9884 | B65: Encarregado de terraplenagem | C65: mês | D65: 3572.7672 | E65: 1.014049 | F65: 7195.7282 | G65: 0
A66: P9885 | B66: Frentista de túnel | C66: h | D66: 8.88 | E66: 1.892258 | F66: 25.6832 | G66: 0
A67: P9889 | B67: Técnico da qualidade | C67: mês | D67: 3433.6928 | E67: 1.031486 | F67: 6975.4988 | G67: 0
A68: P9891 | B68: Engenheiro mecânico | C68: mês | D68: 12633.3004 | E68: 0.828942 | F68: 23105.5737 | G68: 0
A69: P9892 | B69: Auxiliar de blaster | C69: h | D69: 8.2651 | E69: 2.266683 | F69: 29.4789 | G69: 0.3
A70: P9893 | B70: Encarregado de pavimentação | C70: mês | D70: 3572.7672 | E70: 1.014049 | F70: 7195.7282 | G70: 0
A71: P9896 | B71: Porteiro | C71: mês | D71: 1431.4407 | E71: 1.597809 | F71: 3718.6095 | G71: 0
A72: P9897 | B72: Técnico de meio ambiente | C72: mês | D72: 3429.5822 | E72: 1.027682 | F72: 6954.102 | G72: 0
A73: P9900 | B73: Comprador | C73: mês | D73: 3174.5236 | E73: 1.133783 | F73: 6773.7444 | G73: 0
A74: P9901 | B74: Encarregado de superestrutura ferroviária | C74: mês | D74: 3572.7672 | E74: 1.014049 | F74: 7195.7282 | G74: 0
A75: P9903 | B75: Auxiliar técnico | C75: mês | D75: 1704.9316 | E75: 1.448858 | F75: 4175.1353 | G75: 0
A76: P9907 | B76: Comandante de longo curso | C76: mês | D76: 14307.3935 | E76: 0.82956 | F76: 26176.2348 | G76: 0
A77: P9908 | B77: Imediato | C77: mês | D77: 9204.4566 | E77: 0.87084 | F77: 17220.0655 | G77: 0
A78: P9909 | B78: Oficial de náutica | C78: mês | D78: 2559.2555 | E78: 1.174634 | F78: 5565.444 | G78: 0
A79: P9910 | B79: Oficial de máquinas | C79: mês | D79: 3003.1723 | E79: 1.111844 | F79: 6342.2314 | G79: 0
A80: P9911 | B80: Condutor de máquinas | C80: mês | D80: 2146.73 | E80: 1.253845 | F80: 4838.3966 | G80: 0
A81: P9912 | B81: Capitão fluvial com periculosidade | C81: h | D81: 26.9895 | E81: 1.638889 | F81: 79.3191 | G81: 0.3
A82: P9913 | B82: Draguista | C82: mês | D82: 3595.3388 | E82: 1.051407 | F82: 7375.5031 | G82: 0
A83: P9915 | B83: Maquinista | C83: h | D83: 12.5669 | E83: 1.630902 | F83: 33.0622 | G83: 0
A84: P9916 | B84: Encarregado de conservação rodoviária | C84: mês | D84: 3572.7672 | E84: 1.014049 | F84: 7195.7282 | G84: 0
A85: P9920 | B85: Mestre fluvial | C85: mês | D85: 5937.7022 | E85: 0.934517 | F85: 11486.5858 | G85: 0
A86: P9921 | B86: Mergulhador raso autônomo de emergência | C86: h | D86: 9.0128 | E86: 2.534226 | F86: 34.2209 | G86: 0.2627
A87: P9922 | B87: Mergulhador raso dependente de emergência | C87: h | D87: 8.9931 | E87: 2.618729 | F87: 35.2415 | G87: 0.3
A88: P9924 | B88: Mergulhador raso dependente | C88: h | D88: 8.9931 | E88: 4.101611 | F88: 48.5772 | G88: 0.3
A89: P9925 | B89: Mergulhador raso autônomo | C89: h | D89: 9.0128 | E89: 3.681142 | F89: 44.5578 | G89: 0.2627
A90: P9926 | B90: Mergulhador raso auxiliar de superfície | C90: h | D90: 9.0128 | E90: 2.282251 | F90: 31.9499 | G90: 0.2627
A91: P9927 | B91: Frentista de túnel com periculosidade | C91: h | D91: 8.88 | E91: 2.219798 | F91: 31.2558 | G91: 0.3
A92: P9928 | B92: Servente com periculosidade | C92: h | D92: 6.7 | E92: 2.41976 | F92: 24.9223 | G92: 0.3
A93: P9929 | B93: Bombeiro hidráulico com periculosidade | C93: h | D93: 10.772 | E93: 2.133498 | F93: 36.9856 | G93: 0.3
A94: P9930 | B94: Eletricista com periculosidade | C94: h | D94: 10.2874 | E94: 2.140875 | F94: 35.3976 | G94: 0.3
A95: P9931 | B95: Operador de equipamento de mergulho | C95: h | D95: 16.6882 | E95: 1.815353 | F95: 49.3512 | G95: 0.1419
A96: P9932 | B96: Operador de equipamento pesado com periculosidade | C96: h | D96: 11.74 | E96: 1.979612 | F96: 38.5026 | G96: 0.3
A97: P9933 | B97: Supervisor de mergulho raso | C97: mês | D97: 3671.3967 | E97: 1.334482 | F97: 9091.7807 | G97: 0.1419
A98: P9934 | B98: Motorista de veículo especial com periculosidade | C98: h | D98: 11.7483 | E98: 1.962962 | F98: 38.3342 | G98: 0.3
A99: P9938 | B99: Operador de equipamento leve com periculosidade | C99: h | D99: 8.88 | E99: 2.160611 | F99: 30.7302 | G99: 0.3
A100: P9939 | B100: Operador de equipamento leve com insalubridade | C100: h | D100: 8.88 | E100: 2.339711 | F100: 32.024 | G100: 0.2666
A101: P9940 | B101: Piloto fluvial com periculosidade | C101: h | D101: 14.8924 | E101: 1.814583 | F101: 46.3836 | G101: 0.3
A102: P9941 | B102: Mestre fluvial com periculosidade | C102: h | D102: 26.9895 | E102: 1.638889 | F102: 79.3191 | G102: 0.3
A103: P9942 | B103: Marinheiro de convés com periculosidade | C103: h | D103: 8.8933 | E103: 2.079893 | F103: 30.0584 | G103: 0.3
A104: P9943 | B104: Técnico de batimetria com periculosidade | C104: h | D104: 11.6521 | E104: 1.924869 | F104: 37.5764 | G104: 0.3
A105: P9944 | B105: Operador de equipamento especial com periculosidade | C105: h | D105: 14.44 | E105: 1.86057 | F105: 45.6386 | G105: 0.3
A106: P9945 | B106: Draguista com periculosidade | C106: h | D106: 16.3424 | E106: 1.779803 | F106: 50.3313 | G106: 0.3
A107: P9946 | B107: Engenheiro auxiliar | C107: mês | D107: 11067 | E107: 0.834536 | F107: 20302.8099 | G107: 0
A108: P9947 | B108: Técnico florestal | C108: mês | D108: 3429.5822 | E108: 1.027682 | F108: 6954.102 | G108: 0
A109: P9948 | B109: Motorista de veículo leve - mensalista | C109: mês | D109: 2255 | E109: 1.272852 | F109: 5125.2812 | G109: 0
A110: P9949 | B110: Topógrafo | C110: mês | D110: 3825.8 | E110: 1.002749 | F110: 7662.1171 | G110: 0
A111: P9950 | B111: Auxiliar de topografia | C111: mês | D111: 2255 | E111: 1.291648 | F111: 5167.6662 | G111: 0
A112: P9951 | B112: Médico de câmara hiperbárica | C112: mês | D112: 9843.5398 | E112: 1.034489 | F112: 20547.2966 | G112: 0.0529
A113: P9952 | B113: Pedreiro - mensalista | C113: mês | D113: 1953.6 | E113: 1.390127 | F113: 4669.3521 | G113: 0
A114: P9953 | B114: Eletricista - mensalista | C114: mês | D114: 2263.2083 | E114: 1.357579 | F114: 5335.6923 | G114: 0
A115: P9954 | B115: Servente - mensalista | C115: mês | D115: 1474 | E115: 1.589845 | F115: 3817.4315 | G115: 0
A116: P9955 | B116: Engenheiro chefe | C116: mês | D116: 16619.4923 | E116: 0.808397 | F116: 30054.64 | G116: 0
A117: P9956 | B117: Motorista de caminhão com periculosidade | C117: h | D117: 11.74 | E117: 1.963345 | F117: 38.3116 | G117: 0.3
A118: P9972 | B118: Técnico de batimetria | C118: mês | D118: 2563.4643 | E118: 1.173393 | F118: 5571.4153 | G118: 0

Sheet DNIT 23
A1: Código | B1: Categoria | C1: Unid. | D1: Salário | E1: Encargos Sociais | G1: Encargos Complementares | Q1: Encargos Adicionais | W1: Encargos Totais | Y1: Valor Total
G2: Alimentação | I2: EPI | K2: Ferramenta | M2: Transporte | O2: Exame Ocupacional | Q2: Cesta Básica | S2: Assistência Médica | U2: Seguro de Vida
D3: R$ | E3: % | F3: R$ | G3: % | H3: R$ | I3: % | J3: R$ | K3: % | L3: R$ | M3: % | N3: R$ | O3: % | P3: R$ | Q3: % | R3: R$ | S3: % | T3: R$ | U3: % | V3: R$ | W3: % | X3: R$ | Y3: R$
A4: P8001 | B4: Advogado júnior | C4: mês | D4: 4222.14 | E4: 0.7963 | F4: 3362.09 | G4: 0.1603 | H4: 677.01 | I4: 0.0062 | J4: 26.03 | K4: 0 | L4: 0 | M4: 0 | N4: 0 | O4: 0.0008 | P4: 3.47 | Q4: 0 | R4: 0 | S4: 0.0714 | T4: 301.42 | U4: 0.0024 | V4: 9.98 | W4: 1.0374 | X4: 4379.99 | Y4: 8602.13
A5: P8002 | B5: Advogado pleno | C5: mês | D5: 5629.52 | E5: 0.7963 | F5: 4482.78 | G5: 0.1203 | H5: 677.01 | I5: 0.0046 | J5: 26.03 | K5: 0 | L5: 0 | M5: 0 | N5: 0 | O5: 0.0006 | P5: 3.47 | Q5: 0 | R5: 0 | S5: 0.0535 | T5: 301.42 | U5: 0.0018 | V5: 9.98 | W5: 0.9771 | X5: 5500.69 | Y5: 11130.21
A6: P8003 | B6: Advogado sênior | C6: mês | D6: 9740.87 | E6: 0.7963 | F6: 7756.65 | G6: 0.0695 | H6: 677.01 | I6: 0.0027 | J6: 26.03 | K6: 0 | L6: 0 | M6: 0 | N6: 0 | O6: 0.0004 | P6: 3.47 | Q6: 0 | R6: 0 | S6: 0.0309 | T6: 301.42 | U6: 0.001 | V6: 9.98 | W6: 0.9008 | X6: 8774.56 | Y6: 18515.43
A7: P8007 | B7: Analista de desenvolvimento de sistemas júnior | C7: mês | D7: 3731.91 | E7: 0.7938 | F7: 2962.39 | G7: 0.1814 | H7: 677.01 | I7: 0 | J7: 0 | K7: 0 | L7: 0 | M7: 0 | N7: 0 | O7: 0.0009 | P7: 3.29 | Q7: 0 | R7: 0 | S7: 0.0808 | T7: 301.42 | U7: 0.0027 | V7: 9.98 | W7: 1.0595 | X7: 3954.09 | Y7: 7686
A8: P8008 | B8: Analista de desenvolvimento de sistemas pleno | C8: mês | D8: 4975.88 | E8: 0.7938 | F8: 3949.85 | G8: 0.1361 | H8: 677.01 | I8: 0 | J8: 0 | K8: 0 | L8: 0 | M8: 0 | N8: 0 | O8: 0.0007 | P8: 3.29 | Q8: 0 | R8: 0 | S8: 0.0606 | T8: 301.42 | U8: 0.002 | V8: 9.98 | W8: 0.9931 | X8: 4941.55 | Y8: 9917.43
A9: P8009 | B9: Analista de desenvolvimento de sistemas sênior | C9: mês | D9: 8853.75 | E9: 0.7938 | F9: 7028.1 | G9: 0.0765 | H9: 677.01 | I9: 0 | J9: 0 | K9: 0 | L9: 0 | M9: 0 | N9: 0 | O9: 0.0004 | P9: 3.29 | Q9: 0 | R9: 0 | S9: 0.034 | T9: 301.42 | U9: 0.0011 | V9: 9.98 | W9: 0.9058 | X9: 8019.8 | Y9: 16873.55
A10: P8013 | B10: Arquiteto júnior | C10: mês | D10: 11067 | E10: 0.7924 | F10: 8769.49 | G10: 0.0612 | H10: 677.01 | I10: 0.0024 | J10: 26.03 | K10: 0 | L10: 0 | M10: 0 | N10: 0 | O10: 0.0002 | P10: 2.6 | Q10: 0 | R10: 0 | S10: 0.0272 | T10: 301.42 | U10: 0.0009 | V10: 9.98 | W10: 0.8843 | X10: 9786.52 | Y10: 20853.52
A11: P8014 | B11: Arquiteto pleno | C11: mês | D11: 11492.2 | E11: 0.7924 | F11: 9106.42 | G11: 0.0589 | H11: 677.01 | I11: 0.0023 | J11: 26.03 | K11: 0 | L11: 0 | M11: 0 | N11: 0 | O11: 0.0002 | P11: 2.6 | Q11: 0 | R11: 0 | S11: 0.0262 | T11: 301.42 | U11: 0.0009 | V11: 9.98 | W11: 0.8809 | X11: 10123.45 | Y11: 21615.65
A12: P8015 | B12: Arquiteto sênior | C12: mês | D12: 14185.72 | E12: 0.7924 | F12: 11240.77 | G12: 0.0477 | H12: 677.01 | I12: 0.0018 | J12: 26.03 | K12: 0 | L12: 0 | M12: 0 | N12: 0 | O12: 0.0002 | P12: 2.6 | Q12: 0 | R12: 0 | S12: 0.0212 | T12: 301.42 | U12: 0.0007 | V12: 9.98 | W12: 0.8641 | X12: 12257.8 | Y12: 26443.52
A13: P8019 | B13: Assistente social júnior | C13: mês | D13: 2867.66 | E13: 0.7997 | F13: 2293.27 | G13: 0.2361 | H13: 677.01 | I13: 0.0091 | J13: 26.03 | K13: 0 | L13: 0 | M13: 0.0164 | N13: 46.97 | O13: 0.0013 | P13: 3.82 | Q13: 0 | R13: 0 | S13: 0.1051 | T13: 301.42 | U13: 0.0035 | V13: 9.98 | W13: 1.1712 | X13: 3358.5 | Y13: 6226.16
A14: P8020 | B14: Assistente social pleno | C14: mês | D14: 3823.55 | E14: 0.7997 | F14: 3057.69 | G14: 0.1771 | H14: 677.01 | I14: 0.0068 | J14: 26.03 | K14: 0 | L14: 0 | M14: 0 | N14: 0 | O14: 0.001 | P14: 3.82 | Q14: 0 | R14: 0 | S14: 0.0788 | T14: 301.42 | U14: 0.0026 | V14: 9.98 | W14: 1.066 | X14: 4075.95 | Y14: 7899.5
A15: P8021 | B15: Assistente social sênior | C15: mês | D15: 6517.04 | E15: 0.7997 | F15: 5211.68 | G15: 0.1039 | H15: 677.01 | I15: 0.004 | J15: 26.03 | K15: 0 | L15: 0 | M15: 0 | N15: 0 | O15: 0.0006 | P15: 3.82 | Q15: 0 | R15: 0 | S15: 0.0463 | T15: 301.42 | U15: 0.0015 | V15: 9.98 | W15: 0.9559 | X15: 6229.93 | Y15: 12746.97
A16: P8025 | B16: Auxiliar | C16: mês | D16: 1428.53 | E16: 0.7998 | F16: 1142.54 | G16: 0.4739 | H16: 677.01 | I16: 0.0222 | J16: 31.69 | K16: 0.0011 | L16: 1.62 | M16: 0.0933 | N16: 133.32 | O16: 0.0025 | P16: 3.57 | Q16: 0 | R16: 0 | S16: 0.211 | T16: 301.42 | U16: 0.007 | V16: 9.98 | W16: 1.6109 | X16: 2301.15 | Y16: 3729.68
A17: P8026 | B17: Auxiliar administrativo | C17: mês | D17: 1708.51 | E17: 0.8011 | F17: 1368.69 | G17: 0.3963 | H17: 677.01 | I17: 0 | J17: 0 | K17: 0 | L17: 0 | M17: 0.0682 | N17: 116.52 | O17: 0.0025 | P17: 4.28 | Q17: 0 | R17: 0 | S17: 0.1764 | T17: 301.42 | U17: 0.0058 | V17: 9.98 | W17: 1.4503 | X17: 2477.89 | Y17: 4186.4
A18: P8027 | B18: Auxiliar de laboratório | C18: mês | D18: 1609.67 | E18: 0.7988 | F18: 1285.81 | G18: 0.4206 | H18: 677.01 | I18: 0.0197 | J18: 31.69 | K18: 0.0021 | L18: 3.35 | M18: 0.0761 | N18: 122.45 | O18: 0.0027 | P18: 4.37 | Q18: 0 | R18: 0 | S18: 0.1873 | T18: 301.42 | U18: 0.0062 | V18: 9.98 | W18: 1.5134 | X18: 2436.08 | Y18: 4045.75
A19: P8028 | B19: Auxiliar de topografia | C19: mês | D19: 1428.53 | E19: 0.7994 | F19: 1141.97 | G19: 0.4739 | H19: 677.01 | I19: 0.0222 | J19: 31.69 | K19: 0.001 | L19: 1.41 | M19: 0.0933 | N19: 133.32 | O19: 0.0031 | P19: 4.48 | Q19: 0 | R19: 0 | S19: 0.211 | T19: 301.42 | U19: 0.007 | V19: 9.98 | W19: 1.6109 | X19: 2301.27 | Y19: 3729.8
A20: P8032 | B20: Biólogo júnior | C20: mês | D20: 3084.04 | E20: 0.7948 | F20: 2451.2 | G20: 0.2195 | H20: 677.01 | I20: 0.0084 | J20: 26.03 | K20: 0 | L20: 0 | M20: 0.011 | N20: 33.99 | O20: 0.0011 | P20: 3.31 | Q20: 0 | R20: 0 | S20: 0.0977 | T20: 301.42 | U20: 0.0032 | V20: 9.98 | W20: 1.1358 | X20: 3502.93 | Y20: 6586.97
A21: P8033 | B21: Biólogo pleno | C21: mês | D21: 4112.06 | E21: 0.7948 | F21: 3268.26 | G21: 0.1646 | H21: 677.01 | I21: 0.0063 | J21: 26.03 | K21: 0 | L21: 0 | M21: 0 | N21: 0 | O21: 0.0008 | P21: 3.31 | Q21: 0 | R21: 0 | S21: 0.0733 | T21: 301.42 | U21: 0.0024 | V21: 9.98 | W21: 1.0423 | X21: 4286.01 | Y21: 8398.06
A22: P8034 | B22: Biólogo sênior | C22: mês | D22: 7148.83 | E22: 0.7948 | F22: 5681.89 | G22: 0.0947 | H22: 677.01 | I22: 0.0036 | J22: 26.03 | K22: 0 | L22: 0 | M22: 0 | N22: 0 | O22: 0.0005 | P22: 3.31 | Q22: 0 | R22: 0 | S22: 0.0422 | T22: 301.42 | U22: 0.0014 | V22: 9.98 | W22: 0.9372 | X22: 6699.64 | Y22: 13848.47
A23: P8038 | B23: Chefe de escritório | C23: mês | D23: 3122.68 | E23: 0.7972 | F23: 2489.4 | G23: 0.2168 | H23: 677.01 | I23: 0 | J23: 0 | K23: 0 | L23: 0 | M23: 0.0101 | N23: 31.67 | O23: 0.001 | P23: 3.05 | Q23: 0 | R23: 0 | S23: 0.0965 | T23: 301.42 | U23: 0.0032 | V23: 9.98 | W23: 1.1248 | X23: 3512.52 | Y23: 6635.2
A24: P8040 | B24: Contador júnior | C24: mês | D24: 3909.36 | E24: 0.7961 | F24: 3112.24 | G24: 0.1732 | H24: 677.01 | I24: 0 | J24: 0 | K24: 0 | L24: 0 | M24: 0 | N24: 0 | O24: 0.0008 | P24: 3.14 | Q24: 0 | R24: 0 | S24: 0.0771 | T24: 301.42 | U24: 0.0026 | V24: 9.98 | W24: 1.0497 | X24: 4103.79 | Y24: 8013.14
A25: P8041 | B25: Contador pleno | C25: mês | D25: 5212.47 | E25: 0.7961 | F25: 4149.65 | G25: 0.1299 | H25: 677.01 | I25: 0 | J25: 0 | K25: 0 | L25: 0 | M25: 0 | N25: 0 | O25: 0.0006 | P25: 3.14 | Q25: 0 | R25: 0 | S25: 0.0578 | T25: 301.42 | U25: 0.0019 | V25: 9.98 | W25: 0.9863 | X25: 5141.2 | Y25: 10353.67
A26: P8042 | B26: Contador sênior | C26: mês | D26: 9737.02 | E26: 0.7961 | F26: 7751.64 | G26: 0.0695 | H26: 677.01 | I26: 0 | J26: 0 | K26: 0 | L26: 0 | M26: 0 | N26: 0 | O26: 0.0003 | P26: 3.14 | Q26: 0 | R26: 0 | S26: 0.031 | T26: 301.42 | U26: 0.001 | V26: 9.98 | W26: 0.8979 | X26: 8743.19 | Y26: 18480.22
A27: P8044 | B27: Coordenador ambiental | C27: mês | D27: 15552.43 | E27: 0.7945 | F27: 12356.4 | G27: 0.0435 | H27: 677.01 | I27: 0.0015 | J27: 23.77 | K27: 0 | L27: 0 | M27: 0 | N27: 0 | O27: 0.0002 | P27: 3.38 | Q27: 0 | R27: 0 | S27: 0.0194 | T27: 301.42 | U27: 0.0006 | V27: 9.98 | W27: 0.8598 | X27: 13371.96 | Y27: 28924.39
A28: P8045 | B28: Economista júnior | C28: mês | D28: 4306.55 | E28: 0.7922 | F28: 3411.65 | G28: 0.1572 | H28: 677.01 | I28: 0 | J28: 0 | K28: 0 | L28: 0 | M28: 0 | N28: 0 | O28: 0.0007 | P28: 3.03 | Q28: 0 | R28: 0 | S28: 0.07 | T28: 301.42 | U28: 0.0023 | V28: 9.98 | W28: 1.0224 | X28: 4403.09 | Y28: 8709.64
A29: P8046 | B29: Economista pleno | C29: mês | D29: 5742.07 | E29: 0.7922 | F29: 4548.87 | G29: 0.1179 | H29: 677.01 | I29: 0 | J29: 0 | K29: 0 | L29: 0 | M29: 0 | N29: 0 | O29: 0.0005 | P29: 3.03 | Q29: 0 | R29: 0 | S29: 0.0525 | T29: 301.42 | U29: 0.0017 | V29: 9.98 | W29: 0.9649 | X29: 5540.31 | Y29: 11282.38
A30: P8047 | B30: Economista sênior | C30: mês | D30: 9853.56 | E30: 0.7922 | F30: 7805.99 | G30: 0.0687 | H30: 677.01 | I30: 0 | J30: 0 | K30: 0 | L30: 0 | M30: 0 | N30: 0 | O30: 0.0003 | P30: 3.03 | Q30: 0 | R30: 0 | S30: 0.0306 | T30: 301.42 | U30: 0.001 | V30: 9.98 | W30: 0.8928 | X30: 8797.43 | Y30: 18650.99
A31: P8054 | B31: Engenheiro agrônomo júnior | C31: mês | D31: 11067 | E31: 0.7903 | F31: 8746.25 | G31: 0.0612 | H31: 677.01 | I31: 0.0024 | J31: 26.03 | K31: 0 | L31: 0 | M31: 0 | N31: 0 | O31: 0.0003 | P31: 3.08 | Q31: 0 | R31: 0 | S31: 0.0272 | T31: 301.42 | U31: 0.0009 | V31: 9.98 | W31: 0.8822 | X31: 9763.76 | Y31: 20830.76
A32: P8055 | B32: Engenheiro agrônomo pleno | C32: mês | D32: 12027.17 | E32: 0.7903 | F32: 9505.07 | G32: 0.0563 | H32: 677.01 | I32: 0.0022 | J32: 26.03 | K32: 0 | L32: 0 | M32: 0 | N32: 0 | O32: 0.0003 | P32: 3.08 | Q32: 0 | R32: 0 | S32: 0.0251 | T32: 301.42 | U32: 0.0008 | V32: 9.98 | W32: 0.8749 | X32: 10522.59 | Y32: 22549.76
A33: P8056 | B33: Engenheiro agrônomo sênior | C33: mês | D33: 12987.35 | E33: 0.7903 | F33: 10263.9 | G33: 0.0521 | H33: 677.01 | I33: 0.002 | J33: 26.03 | K33: 0 | L33: 0 | M33: 0 | N33: 0 | O33: 0.0002 | P33: 3.08 | Q33: 0 | R33: 0 | S33: 0.0232 | T33: 301.42 | U33: 0.0008 | V33: 9.98 | W33: 0.8686 | X33: 11281.41 | Y33: 24268.76
A34: P8057 | B34: Engenheiro ambiental júnior | C34: mês | D34: 11067 | E34: 0.7957 | F34: 8806.01 | G34: 0.0612 | H34: 677.01 | I34: 0.0024 | J34: 26.03 | K34: 0 | L34: 0 | M34: 0 | N34: 0 | O34: 0.0003 | P34: 3.45 | Q34: 0 | R34: 0 | S34: 0.0272 | T34: 301.42 | U34: 0.0009 | V34: 9.98 | W34: 0.8877 | X34: 9823.9 | Y34: 20890.9
A35: P8058 | B35: Engenheiro ambiental pleno | C35: mês | D35: 11113.77 | E35: 0.7957 | F35: 8843.23 | G35: 0.0609 | H35: 677.01 | I35: 0.0023 | J35: 26.03 | K35: 0 | L35: 0 | M35: 0 | N35: 0 | O35: 0.0003 | P35: 3.45 | Q35: 0 | R35: 0 | S35: 0.0271 | T35: 301.42 | U35: 0.0009 | V35: 9.98 | W35: 0.8873 | X35: 9861.12 | Y35: 20974.89
A36: P8059 | B36: Engenheiro ambiental sênior | C36: mês | D36: 13306.5 | E36: 0.7957 | F36: 10587.98 | G36: 0.0509 | H36: 677.01 | I36: 0.002 | J36: 26.03 | K36: 0 | L36: 0 | M36: 0 | N36: 0 | O36: 0.0003 | P36: 3.45 | Q36: 0 | R36: 0 | S36: 0.0227 | T36: 301.42 | U36: 0.0008 | V36: 9.98 | W36: 0.8722 | X36: 11605.87 | Y36: 24912.36
A37: P8060 | B37: Engenheiro consultor especial | C37: mês | D37: 20421.76 | E37: 0.7939 | F37: 16212.84 | G37: 0.0332 | H37: 677.01 | I37: 0.0012 | J37: 23.77 | K37: 0 | L37: 0 | M37: 0 | N37: 0 | O37: 0.0002 | P37: 3.32 | Q37: 0 | R37: 0 | S37: 0.0148 | T37: 301.42 | U37: 0.0005 | V37: 9.98 | W37: 0.8436 | X37: 17228.34 | Y37: 37650.1
A38: P8061 | B38: Engenheiro coordenador | C38: mês | D38: 17018.13 | E38: 0.7939 | F38: 13510.7 | G38: 0.0398 | H38: 677.01 | I38: 0.0014 | J38: 23.77 | K38: 0 | L38: 0 | M38: 0 | N38: 0 | O38: 0.0002 | P38: 3.32 | Q38: 0 | R38: 0 | S38: 0.0177 | T38: 301.42 | U38: 0.0006 | V38: 9.98 | W38: 0.8536 | X38: 14526.2 | Y38: 31544.33
A39: P8062 | B39: Engenheiro de pesca júnior | C39: mês | D39: 11067 | E39: 0.7971 | F39: 8821.51 | G39: 0.0612 | H39: 677.01 | I39: 0.0024 | J39: 26.03 | K39: 0 | L39: 0 | M39: 0 | N39: 0 | O39: 0.0004 | P39: 3.89 | Q39: 0 | R39: 0 | S39: 0.0272 | T39: 301.42 | U39: 0.0009 | V39: 9.98 | W39: 0.8891 | X39: 9839.83 | Y39: 20906.83
A40: P8063 | B40: Engenheiro de pesca pleno | C40: mês | D40: 11199.09 | E40: 0.7971 | F40: 8926.8 | G40: 0.0605 | H40: 677.01 | I40: 0.0023 | J40: 26.03 | K40: 0 | L40: 0 | M40: 0 | N40: 0 | O40: 0.0003 | P40: 3.89 | Q40: 0 | R40: 0 | S40: 0.0269 | T40: 301.42 | U40: 0.0009 | V40: 9.98 | W40: 0.888 | X40: 9945.12 | Y40: 21144.22
A41: P8064 | B41: Engenheiro de pesca sênior | C41: mês | D41: 12672.11 | E41: 0.7971 | F41: 10100.94 | G41: 0.0534 | H41: 677.01 | I41: 0.0021 | J41: 26.03 | K41: 0 | L41: 0 | M41: 0 | N41: 0 | O41: 0.0003 | P41: 3.89 | Q41: 0 | R41: 0 | S41: 0.0238 | T41: 301.42 | U41: 0.0008 | V41: 9.98 | W41: 0.8775 | X41: 11119.27 | Y41: 23791.38
A42: P8065 | B42: Engenheiro de projetos júnior | C42: mês | D42: 11067 | E42: 0.7939 | F42: 8786.09 | G42: 0.0612 | H42: 677.01 | I42: 0.0024 | J42: 26.03 | K42: 0 | L42: 0 | M42: 0 | N42: 0 | O42: 0.0003 | P42: 3.32 | Q42: 0 | R42: 0 | S42: 0.0272 | T42: 301.42 | U42: 0.0009 | V42: 9.98 | W42: 0.8859 | X42: 9803.85 | Y42: 20870.85
A43: P8066 | B43: Engenheiro de projetos pleno | C43: mês | D43: 11469.24 | E43: 0.7939 | F43: 9105.43 | G43: 0.059 | H43: 677.01 | I43: 0.0023 | J43: 26.03 | K43: 0 | L43: 0 | M43: 0 | N43: 0 | O43: 0.0003 | P43: 3.32 | Q43: 0 | R43: 0 | S43: 0.0263 | T43: 301.42 | U43: 0.0009 | V43: 9.98 | W43: 0.8826 | X43: 10123.19 | Y43: 21592.42
A44: P8067 | B44: Engenheiro de projetos sênior | C44: mês | D44: 14672.91 | E44: 0.7939 | F44: 11648.82 | G44: 0.0461 | H44: 677.01 | I44: 0.0018 | J44: 26.03 | K44: 0 | L44: 0 | M44: 0 | N44: 0 | O44: 0.0002 | P44: 3.32 | Q44: 0 | R44: 0 | S44: 0.0205 | T44: 301.42 | U44: 0.0007 | V44: 9.98 | W44: 0.8633 | X44: 12666.58 | Y44: 27339.49
A45: P8068 | B45: Engenheiro florestal júnior | C45: mês | D45: 11067 | E45: 0.7971 | F45: 8821.51 | G45: 0.0612 | H45: 677.01 | I45: 0.0024 | J45: 26.03 | K45: 0 | L45: 0 | M45: 0 | N45: 0 | O45: 0.0004 | P45: 3.89 | Q45: 0 | R45: 0 | S45: 0.0272 | T45: 301.42 | U45: 0.0009 | V45: 9.98 | W45: 0.8891 | X45: 9839.83 | Y45: 20906.83
A46: P8069 | B46: Engenheiro florestal pleno | C46: mês | D46: 11199.11 | E46: 0.7971 | F46: 8926.81 | G46: 0.0605 | H46: 677.01 | I46: 0.0023 | J46: 26.03 | K46: 0 | L46: 0 | M46: 0 | N46: 0 | O46: 0.0003 | P46: 3.89 | Q46: 0 | R46: 0 | S46: 0.0269 | T46: 301.42 | U46: 0.0009 | V46: 9.98 | W46: 0.888 | X46: 9945.14 | Y46: 21144.25
A47: P8070 | B47: Engenheiro florestal sênior | C47: mês | D47: 12672.11 | E47: 0.7971 | F47: 10100.94 | G47: 0.0534 | H47: 677.01 | I47: 0.0021 | J47: 26.03 | K47: 0 | L47: 0 | M47: 0 | N47: 0 | O47: 0.0003 | P47: 3.89 | Q47: 0 | R47: 0 | S47: 0.0238 | T47: 301.42 | U47: 0.0008 | V47: 9.98 | W47: 0.8775 | X47: 11119.27 | Y47: 23791.38
A48: P8080 | B48: Geólogo júnior | C48: mês | D48: 10004.5 | E48: 0.7959 | F48: 7962.58 | G48: 0.0677 | H48: 677.01 | I48: 0.0026 | J48: 26.03 | K48: 0 | L48: 0 | M48: 0 | N48: 0 | O48: 0.0004 | P48: 3.55 | Q48: 0 | R48: 0 | S48: 0.0301 | T48: 301.42 | U48: 0.001 | V48: 9.98 | W48: 0.8977 | X48: 8980.57 | Y48: 18985.07
A49: P8081 | B49: Geólogo pleno | C49: mês | D49: 10526.36 | E49: 0.7959 | F49: 8377.93 | G49: 0.0643 | H49: 677.01 | I49: 0.0025 | J49: 26.03 | K49: 0 | L49: 0 | M49: 0 | N49: 0 | O49: 0.0003 | P49: 3.55 | Q49: 0 | R49: 0 | S49: 0.0286 | T49: 301.42 | U49: 0.0009 | V49: 9.98 | W49: 0.8926 | X49: 9395.92 | Y49: 19922.28
A50: P8082 | B50: Geólogo sênior | C50: mês | D50: 14001.61 | E50: 0.7959 | F50: 11143.88 | G50: 0.0484 | H50: 677.01 | I50: 0.0019 | J50: 26.03 | K50: 0 | L50: 0 | M50: 0 | N50: 0 | O50: 0.0003 | P50: 3.55 | Q50: 0 | R50: 0 | S50: 0.0215 | T50: 301.42 | U50: 0.0007 | V50: 9.98 | W50: 0.8686 | X50: 12161.87 | Y50: 26163.48
A51: P8092 | B51: Jornalista júnior | C51: mês | D51: 2682.71 | E51: 0.7963 | F51: 2136.24 | G51: 0.2524 | H51: 677.01 | I51: 0.0097 | J51: 26.03 | K51: 0 | L51: 0 | M51: 0.0216 | N51: 58.07 | O51: 0.0011 | P51: 2.95 | Q51: 0 | R51: 0 | S51: 0.1124 | T51: 301.42 | U51: 0.0037 | V51: 9.98 | W51: 1.1972 | X51: 3211.7 | Y51: 5894.4
A52: P8093 | B52: Jornalista pleno | C52: mês | D52: 3576.94 | E52: 0.7963 | F52: 2848.32 | G52: 0.1893 | H52: 677.01 | I52: 0.0073 | J52: 26.03 | K52: 0 | L52: 0 | M52: 0.0012 | N52: 4.42 | O52: 0.0008 | P52: 2.95 | Q52: 0 | R52: 0 | S52: 0.0843 | T52: 301.42 | U52: 0.0028 | V52: 9.98 | W52: 1.082 | X52: 3870.12 | Y52: 7447.06
A53: P8094 | B53: Jornalista sênior | C53: mês | D53: 6931.43 | E53: 0.7963 | F53: 5519.5 | G53: 0.0977 | H53: 677.01 | I53: 0.0038 | J53: 26.03 | K53: 0 | L53: 0 | M53: 0 | N53: 0 | O53: 0.0004 | P53: 2.95 | Q53: 0 | R53: 0 | S53: 0.0435 | T53: 301.42 | U53: 0.0014 | V53: 9.98 | W53: 0.9431 | X53: 6536.88 | Y53: 13468.31
A54: P8098 | B54: Laboratorista | C54: mês | D54: 2146.23 | E54: 0.7988 | F54: 1714.41 | G54: 0.3154 | H54: 677.01 | I54: 0.0136 | J54: 29.18 | K54: 0 | L54: 0 | M54: 0.0421 | N54: 90.26 | O54: 0.002 | P54: 4.37 | Q54: 0 | R54: 0 | S54: 0.1404 | T54: 301.42 | U54: 0.0047 | V54: 9.98 | W54: 1.317 | X54: 2826.63 | Y54: 4972.86
A55: P8102 | B55: Médico veterinário | C55: mês | D55: 11067 | E55: 0.792 | F55: 8765.06 | G55: 0.0612 | H55: 677.01 | I55: 0.0024 | J55: 26.03 | K55: 0 | L55: 0 | M55: 0 | N55: 0 | O55: 0.0003 | P55: 2.98 | Q55: 0 | R55: 0 | S55: 0.0272 | T55: 301.42 | U55: 0.0009 | V55: 9.98 | W55: 0.8839 | X55: 9782.48 | Y55: 20849.48
A56: P8106 | B56: Meteorologista júnior | C56: mês | D56: 4696.66 | E56: 0.7956 | F56: 3736.66 | G56: 0.1441 | H56: 677.01 | I56: 0.0055 | J56: 26.03 | K56: 0 | L56: 0 | M56: 0 | N56: 0 | O56: 0.0006 | P56: 2.8 | Q56: 0 | R56: 0 | S56: 0.0642 | T56: 301.42 | U56: 0.0021 | V56: 9.98 | W56: 1.0122 | X56: 4753.9 | Y56: 9450.55
A57: P8107 | B57: Meteorologista pleno | C57: mês | D57: 6262.21 | E57: 0.7956 | F57: 4982.21 | G57: 0.1081 | H57: 677.01 | I57: 0.0042 | J57: 26.03 | K57: 0 | L57: 0 | M57: 0 | N57: 0 | O57: 0.0004 | P57: 2.8 | Q57: 0 | R57: 0 | S57: 0.0481 | T57: 301.42 | U57: 0.0016 | V57: 9.98 | W57: 0.958 | X57: 5999.45 | Y57: 12261.66
A58: P8108 | B58: Meteorologista sênior | C58: mês | D58: 10569.08 | E58: 0.7956 | F58: 8408.76 | G58: 0.0641 | H58: 677.01 | I58: 0.0025 | J58: 26.03 | K58: 0 | L58: 0 | M58: 0 | N58: 0 | O58: 0.0003 | P58: 2.8 | Q58: 0 | R58: 0 | S58: 0.0285 | T58: 301.42 | U58: 0.0009 | V58: 9.98 | W58: 0.8918 | X58: 9425.99 | Y58: 19995.07
A59: P8112 | B59: Motorista de caminhão | C59: mês | D59: 2096.81 | E59: 0.7998 | F59: 1677.03 | G59: 0.3229 | H59: 677.01 | I59: 0.0151 | J59: 31.69 | K59: 0 | L59: 0 | M59: 0.0445 | N59: 93.22 | O59: 0.0021 | P59: 4.41 | Q59: 0 | R59: 0 | S59: 0.1438 | T59: 301.42 | U59: 0.0048 | V59: 9.98 | W59: 1.3329 | X59: 2794.76 | Y59: 4891.57
A60: P8113 | B60: Motorista de veículo leve | C60: mês | D60: 1918.44 | E60: 0.7971 | F60: 1529.19 | G60: 0.3529 | H60: 677.01 | I60: 0.0165 | J60: 31.69 | K60: 0 | L60: 0 | M60: 0.0542 | N60: 103.93 | O60: 0.002 | P60: 3.88 | Q60: 0 | R60: 0 | S60: 0.1571 | T60: 301.42 | U60: 0.0052 | V60: 9.98 | W60: 1.385 | X60: 2657.09 | Y60: 4575.53
A61: P8117 | B61: Oceanógrafo júnior | C61: mês | D61: 4509.57 | E61: 0.8358 | F61: 3769.1 | G61: 0.1501 | H61: 677.01 | I61: 0.0058 | J61: 26.03 | K61: 0 | L61: 0 | M61: 0 | N61: 0 | O61: 0.0016 | P61: 7.38 | Q61: 0 | R61: 0 | S61: 0.0668 | T61: 301.42 | U61: 0.0022 | V61: 9.98 | W61: 1.0624 | X61: 4790.92 | Y61: 9300.5
A62: P8118 | B62: Oceanógrafo pleno | C62: mês | D62: 6012.77 | E62: 0.8358 | F62: 5025.47 | G62: 0.1126 | H62: 677.01 | I62: 0.0043 | J62: 26.03 | K62: 0 | L62: 0 | M62: 0 | N62: 0 | O62: 0.0012 | P62: 7.38 | Q62: 0 | R62: 0 | S62: 0.0501 | T62: 301.42 | U62: 0.0017 | V62: 9.98 | W62: 1.0057 | X62: 6047.29 | Y62: 12060.05
A63: P8119 | B63: Oceanógrafo sênior | C63: mês | D63: 9797.51 | E63: 0.8358 | F63: 8188.76 | G63: 0.0691 | H63: 677.01 | I63: 0.0027 | J63: 26.03 | K63: 0 | L63: 0 | M63: 0 | N63: 0 | O63: 0.0008 | P63: 7.38 | Q63: 0 | R63: 0 | S63: 0.0308 | T63: 301.42 | U63: 0.001 | V63: 9.98 | W63: 0.9401 | X63: 9210.58 | Y63: 19008.09
A64: P8129 | B64: Pedagogo júnior | C64: mês | D64: 2605.46 | E64: 0.7969 | F64: 2076.29 | G64: 0.2598 | H64: 677.01 | I64: 0.01 | J64: 26.03 | K64: 0 | L64: 0 | M64: 0.0241 | N64: 62.7 | O64: 0.0016 | P64: 4.22 | Q64: 0 | R64: 0 | S64: 0.1157 | T64: 301.42 | U64: 0.0038 | V64: 9.98 | W64: 1.2119 | X64: 3157.64 | Y64: 5763.1
A65: P8130 | B65: Pedagogo pleno | C65: mês | D65: 3473.94 | E65: 0.7969 | F65: 2768.38 | G65: 0.1949 | H65: 677.01 | I65: 0.0075 | J65: 26.03 | K65: 0 | L65: 0 | M65: 0.003 | N65: 10.6 | O65: 0.0012 | P65: 4.22 | Q65: 0 | R65: 0 | S65: 0.0868 | T65: 301.42 | U65: 0.0029 | V65: 9.98 | W65: 1.0932 | X65: 3797.63 | Y65: 7271.57
A66: P8131 | B66: Pedagogo sênior | C66: mês | D66: 5794.12 | E66: 0.7969 | F66: 4617.34 | G66: 0.1168 | H66: 677.01 | I66: 0.0045 | J66: 26.03 | K66: 0 | L66: 0 | M66: 0 | N66: 0 | O66: 0.0007 | P66: 4.22 | Q66: 0 | R66: 0 | S66: 0.052 | T66: 301.42 | U66: 0.0017 | V66: 9.98 | W66: 0.9727 | X66: 5635.99 | Y66: 11430.11
A67: P8135 | B67: Secretária | C67: mês | D67: 2335.81 | E67: 0.7972 | F67: 1862.11 | G67: 0.2898 | H67: 677.01 | I67: 0 | J67: 0 | K67: 0 | L67: 0 | M67: 0.0338 | N67: 78.88 | O67: 0.0013 | P67: 3.05 | Q67: 0 | R67: 0 | S67: 0.129 | T67: 301.42 | U67: 0.0043 | V67: 9.98 | W67: 1.2554 | X67: 2932.45 | Y67: 5268.26
A68: P8139 | B68: Sondador | C68: mês | D68: 1843.72 | E68: 0.7967 | F68: 1468.89 | G68: 0.3672 | H68: 677.01 | I68: 0.0158 | J68: 29.18 | K68: 0 | L68: 0 | M68: 0.0588 | N68: 108.41 | O68: 0.0022 | P68: 4.01 | Q68: 0 | R68: 0 | S68: 0.1635 | T68: 301.42 | U68: 0.0054 | V68: 9.98 | W68: 1.4096 | X68: 2598.9 | Y68: 4442.62
A69: P8143 | B69: Técnico ambiental | C69: mês | D69: 2751.31 | E69: 0.7985 | F69: 2196.92 | G69: 0.2461 | H69: 677.01 | I69: 0.0106 | J69: 29.18 | K69: 0 | L69: 0 | M69: 0.0196 | N69: 53.95 | O69: 0.0015 | P69: 4.05 | Q69: 0 | R69: 0 | S69: 0.1096 | T69: 301.42 | U69: 0.0036 | V69: 9.98 | W69: 1.1894 | X69: 3272.51 | Y69: 6023.83
A70: P8147 | B70: Técnico de obras | C70: mês | D70: 3091.07 | E70: 0.7968 | F70: 2462.97 | G70: 0.219 | H70: 677.01 | I70: 0.0094 | J70: 29.18 | K70: 0 | L70: 0 | M70: 0.0109 | N70: 33.57 | O70: 0.0012 | P70: 3.84 | Q70: 0 | R70: 0 | S70: 0.0975 | T70: 301.42 | U70: 0.0032 | V70: 9.98 | W70: 1.1381 | X70: 3517.96 | Y70: 6609.04
A71: P8151 | B71: Técnico de segurança do trabalho | C71: mês | D71: 4293.4 | E71: 0.8018 | F71: 3442.45 | G71: 0.1577 | H71: 677.01 | I71: 0.0068 | J71: 29.18 | K71: 0 | L71: 0 | M71: 0 | N71: 0 | O71: 0.0011 | P71: 4.61 | Q71: 0 | R71: 0 | S71: 0.0702 | T71: 301.42 | U71: 0.0023 | V71: 9.98 | W71: 1.0399 | X71: 4464.64 | Y71: 8758.04
A72: P8155 | B72: Técnico em geoprocessamento | C72: mês | D72: 2522.76 | E72: 0.7945 | F72: 2004.33 | G72: 0.2684 | H72: 677.01 | I72: 0.0116 | J72: 29.18 | K72: 0 | L72: 0 | M72: 0.0268 | N72: 67.67 | O72: 0.0013 | P72: 3.27 | Q72: 0 | R72: 0 | S72: 0.1195 | T72: 301.42 | U72: 0.004 | V72: 9.98 | W72: 1.226 | X72: 3092.86 | Y72: 5615.61
A73: P8159 | B73: Técnico em informática - programador | C73: mês | D73: 3610.93 | E73: 0.7965 | F73: 2876.1 | G73: 0.1875 | H73: 677.01 | I73: 0 | J73: 0 | K73: 0 | L73: 0 | M73: 0.0007 | N73: 2.38 | O73: 0.0011 | P73: 3.86 | Q73: 0 | R73: 0 | S73: 0.0835 | T73: 301.42 | U73: 0.0028 | V73: 9.98 | W73: 1.072 | X73: 3870.75 | Y73: 7481.67
A74: P8163 | B74: Topógrafo | C74: mês | D74: 2323.3 | E74: 0.7994 | F74: 1857.25 | G74: 0.2914 | H74: 677.01 | I74: 0.0126 | J74: 29.18 | K74: 0 | L74: 0 | M74: 0.0343 | N74: 79.63 | O74: 0.0019 | P74: 4.48 | Q74: 0 | R74: 0 | S74: 0.1297 | T74: 301.42 | U74: 0.0043 | V74: 9.98 | W74: 1.2736 | X74: 2958.95 | Y74: 5282.25
A75: P8167 | B75: Arquivista júnior | C75: mês | D75: 2018.26 | E75: 0.7981 | F75: 1610.77 | G75: 0.3354 | H75: 677.01 | I75: 0 | J75: 0 | K75: 0 | L75: 0 | M75: 0.0485 | N75: 97.94 | O75: 0.0017 | P75: 3.48 | Q75: 0 | R75: 0 | S75: 0.1493 | T75: 301.42 | U75: 0.0049 | V75: 9.98 | W75: 1.3381 | X75: 2700.6 | Y75: 4718.86
A76: P8168 | B76: Arquivista pleno | C76: mês | D76: 2691.02 | E76: 0.7981 | F76: 2147.7 | G76: 0.2516 | H76: 677.01 | I76: 0 | J76: 0 | K76: 0 | L76: 0 | M76: 0.0214 | N76: 57.57 | O76: 0.0013 | P76: 3.48 | Q76: 0 | R76: 0 | S76: 0.112 | T76: 301.42 | U76: 0.0037 | V76: 9.98 | W76: 1.1881 | X76: 3197.16 | Y76: 5888.17
A77: P8169 | B77: Arquivista sênior | C77: mês | D77: 4219.38 | E77: 0.7981 | F77: 3367.49 | G77: 0.1605 | H77: 677.01 | I77: 0 | J77: 0 | K77: 0 | L77: 0 | M77: 0 | N77: 0 | O77: 0.0008 | P77: 3.48 | Q77: 0 | R77: 0 | S77: 0.0714 | T77: 301.42 | U77: 0.0024 | V77: 9.98 | W77: 1.0332 | X77: 4359.37 | Y77: 8578.76
A78: P8173 | B78: Administrador júnior | C78: mês | D78: 3097.97 | E78: 0.7961 | F78: 2466.29 | G78: 0.2185 | H78: 677.01 | I78: 0 | J78: 0 | K78: 0 | L78: 0 | M78: 0.0107 | N78: 33.15 | O78: 0.001 | P78: 3.11 | Q78: 0 | R78: 0 | S78: 0.0973 | T78: 301.42 | U78: 0.0032 | V78: 9.98 | W78: 1.1269 | X78: 3490.96 | Y78: 6588.93
A79: P8174 | B79: Administrador pleno | C79: mês | D79: 4130.62 | E79: 0.7961 | F79: 3288.39 | G79: 0.1639 | H79: 677.01 | I79: 0 | J79: 0 | K79: 0 | L79: 0 | M79: 0 | N79: 0 | O79: 0.0008 | P79: 3.11 | Q79: 0 | R79: 0 | S79: 0.073 | T79: 301.42 | U79: 0.0024 | V79: 9.98 | W79: 1.0361 | X79: 4279.91 | Y79: 8410.53
A80: P8175 | B80: Administrador sênior | C80: mês | D80: 7233.66 | E80: 0.7961 | F80: 5758.72 | G80: 0.0936 | H80: 677.01 | I80: 0 | J80: 0 | K80: 0 | L80: 0 | M80: 0 | N80: 0 | O80: 0.0004 | P80: 3.11 | Q80: 0 | R80: 0 | S80: 0.0417 | T80: 301.42 | U80: 0.0014 | V80: 9.98 | W80: 0.9332 | X80: 6750.24 | Y80: 13983.9
A81: P8180 | B81: Engenheiro agrimensor júnior | C81: mês | D81: 11067 | E81: 0.7933 | F81: 8779.45 | G81: 0.0612 | H81: 677.01 | I81: 0.0024 | J81: 26.03 | K81: 0 | L81: 0 | M81: 0 | N81: 0 | O81: 0.0002 | P81: 2.71 | Q81: 0 | R81: 0 | S81: 0.0272 | T81: 301.42 | U81: 0.0009 | V81: 9.98 | W81: 0.8852 | X81: 9796.59 | Y81: 20863.59
A82: P8181 | B82: Engenheiro agrimensor pleno | C82: mês | D82: 11198.11 | E82: 0.7933 | F82: 8883.46 | G82: 0.0605 | H82: 677.01 | I82: 0.0023 | J82: 26.03 | K82: 0 | L82: 0 | M82: 0 | N82: 0 | O82: 0.0002 | P82: 2.71 | Q82: 0 | R82: 0 | S82: 0.0269 | T82: 301.42 | U82: 0.0009 | V82: 9.98 | W82: 0.8841 | X82: 9900.6 | Y82: 21098.71
A83: P8182 | B83: Engenheiro agrimensor sênior | C83: mês | D83: 12047.23 | E83: 0.7933 | F83: 9557.07 | G83: 0.0562 | H83: 677.01 | I83: 0.0022 | J83: 26.03 | K83: 0 | L83: 0 | M83: 0 | N83: 0 | O83: 0.0002 | P83: 2.71 | Q83: 0 | R83: 0 | S83: 0.025 | T83: 301.42 | U83: 0.0008 | V83: 9.98 | W83: 0.8777 | X83: 10574.21 | Y83: 22621.44
A84: P8183 | B84: Geógrafo júnior | C84: mês | D84: 3351.22 | E84: 0.7943 | F84: 2661.87 | G84: 0.202 | H84: 677.01 | I84: 0.0078 | J84: 26.03 | K84: 0 | L84: 0 | M84: 0.0054 | N84: 17.96 | O84: 0.0008 | P84: 2.71 | Q84: 0 | R84: 0 | S84: 0.0899 | T84: 301.42 | U84: 0.003 | V84: 9.98 | W84: 1.1032 | X84: 3696.98 | Y84: 7048.19
A85: P8184 | B85: Geógrafo pleno | C85: mês | D85: 4468.29 | E85: 0.7943 | F85: 3549.16 | G85: 0.1515 | H85: 677.01 | I85: 0.0058 | J85: 26.03 | K85: 0 | L85: 0 | M85: 0 | N85: 0 | O85: 0.0006 | P85: 2.71 | Q85: 0 | R85: 0 | S85: 0.0675 | T85: 301.42 | U85: 0.0022 | V85: 9.98 | W85: 1.0219 | X85: 4566.31 | Y85: 9034.6
A86: P8185 | B86: Geógrafo sênior | C86: mês | D86: 8514.33 | E86: 0.7943 | F86: 6762.93 | G86: 0.0795 | H86: 677.01 | I86: 0.0031 | J86: 26.03 | K86: 0 | L86: 0 | M86: 0 | N86: 0 | O86: 0.0003 | P86: 2.71 | Q86: 0 | R86: 0 | S86: 0.0354 | T86: 301.42 | U86: 0.0012 | V86: 9.98 | W86: 0.9138 | X86: 7780.08 | Y86: 16294.41
A87: P8186 | B87: Antropólogo júnior | C87: mês | D87: 3165.46 | E87: 0.8072 | F87: 2555.16 | G87: 0.2139 | H87: 677.01 | I87: 0.0082 | J87: 26.03 | K87: 0 | L87: 0 | M87: 0.0092 | N87: 29.1 | O87: 0.0015 | P87: 4.66 | Q87: 0 | R87: 0 | S87: 0.0952 | T87: 301.42 | U87: 0.0032 | V87: 9.98 | W87: 1.1383 | X87: 3603.36 | Y87: 6768.82
A88: P8187 | B88: Antropólogo pleno | C88: mês | D88: 4220.61 | E88: 0.8072 | F88: 3406.88 | G88: 0.1604 | H88: 677.01 | I88: 0.0062 | J88: 26.03 | K88: 0 | L88: 0 | M88: 0 | N88: 0 | O88: 0.0011 | P88: 4.66 | Q88: 0 | R88: 0 | S88: 0.0714 | T88: 301.42 | U88: 0.0024 | V88: 9.98 | W88: 1.0487 | X88: 4425.97 | Y88: 8646.58
A89: P8188 | B89: Antropólogo sênior | C89: mês | D89: 6078.95 | E89: 0.8072 | F89: 4906.93 | G89: 0.1114 | H89: 677.01 | I89: 0.0043 | J89: 26.03 | K89: 0 | L89: 0 | M89: 0 | N89: 0 | O89: 0.0008 | P89: 4.66 | Q89: 0 | R89: 0 | S89: 0.0496 | T89: 301.42 | U89: 0.0016 | V89: 9.98 | W89: 0.9748 | X89: 5926.02 | Y89: 12004.97
A90: P8189 | B90: Arqueólogo júnior | C90: mês | D90: 3085.16 | E90: 0.8271 | F90: 2551.74 | G90: 0.2194 | H90: 677.01 | I90: 0.0084 | J90: 26.03 | K90: 0 | L90: 0 | M90: 0.011 | N90: 33.92 | O90: 0.002 | P90: 6.32 | Q90: 0 | R90: 0 | S90: 0.0977 | T90: 301.42 | U90: 0.0032 | V90: 9.98 | W90: 1.169 | X90: 3606.42 | Y90: 6691.58
A91: P8190 | B91: Arqueólogo pleno | C91: mês | D91: 4113.55 | E91: 0.8271 | F91: 3402.32 | G91: 0.1646 | H91: 677.01 | I91: 0.0063 | J91: 26.03 | K91: 0 | L91: 0 | M91: 0 | N91: 0 | O91: 0.0015 | P91: 6.32 | Q91: 0 | R91: 0 | S91: 0.0733 | T91: 301.42 | U91: 0.0024 | V91: 9.98 | W91: 1.0752 | X91: 4423.07 | Y91: 8536.62
A92: P8191 | B92: Arqueólogo sênior | C92: mês | D92: 5832.14 | E92: 0.8271 | F92: 4823.76 | G92: 0.1161 | H92: 677.01 | I92: 0.0045 | J92: 26.03 | K92: 0 | L92: 0 | M92: 0 | N92: 0 | O92: 0.0011 | P92: 6.32 | Q92: 0 | R92: 0 | S92: 0.0517 | T92: 301.42 | U92: 0.0017 | V92: 9.98 | W92: 1.0021 | X92: 5844.52 | Y92: 11676.66
A93: P8192 | B93: Historiador júnior | C93: mês | D93: 3325.64 | E93: 0.7967 | F93: 2649.54 | G93: 0.2036 | H93: 677.01 | I93: 0.0078 | J93: 26.03 | K93: 0 | L93: 0 | M93: 0.0059 | N93: 19.49 | O93: 0.0011 | P93: 3.69 | Q93: 0 | R93: 0 | S93: 0.0906 | T93: 301.42 | U93: 0.003 | V93: 9.98 | W93: 1.1087 | X93: 3687.15 | Y93: 7012.79
A94: P8193 | B94: Historiador pleno | C94: mês | D94: 4434.18 | E94: 0.7967 | F94: 3532.71 | G94: 0.1527 | H94: 677.01 | I94: 0.0059 | J94: 26.03 | K94: 0 | L94: 0 | M94: 0 | N94: 0 | O94: 0.0008 | P94: 3.69 | Q94: 0 | R94: 0 | S94: 0.068 | T94: 301.42 | U94: 0.0023 | V94: 9.98 | W94: 1.0263 | X94: 4550.84 | Y94: 8985.02
A95: P8194 | B95: Historiador sênior | C95: mês | D95: 7403.84 | E95: 0.7967 | F95: 5898.64 | G95: 0.0914 | H95: 677.01 | I95: 0.0035 | J95: 26.03 | K95: 0 | L95: 0 | M95: 0 | N95: 0 | O95: 0.0005 | P95: 3.69 | Q95: 0 | R95: 0 | S95: 0.0407 | T95: 301.42 | U95: 0.0013 | V95: 9.98 | W95: 0.9342 | X95: 6916.76 | Y95: 14320.6
A96: P8195 | B96: Paleontólogo júnior | C96: mês | D96: 3141.84 | E96: 0.7981 | F96: 2507.51 | G96: 0.2155 | H96: 677.01 | I96: 0.0083 | J96: 26.03 | K96: 0 | L96: 0 | M96: 0.0097 | N96: 30.52 | O96: 0.0012 | P96: 3.91 | Q96: 0 | R96: 0 | S96: 0.0959 | T96: 301.42 | U96: 0.0032 | V96: 9.98 | W96: 1.1319 | X96: 3556.37 | Y96: 6698.22
A97: P8196 | B97: Paleontólogo pleno | C97: mês | D97: 4189.13 | E97: 0.7981 | F97: 3343.34 | G97: 0.1616 | H97: 677.01 | I97: 0.0062 | J97: 26.03 | K97: 0 | L97: 0 | M97: 0 | N97: 0 | O97: 0.0009 | P97: 3.91 | Q97: 0 | R97: 0 | S97: 0.072 | T97: 301.42 | U97: 0.0024 | V97: 9.98 | W97: 1.0412 | X97: 4361.69 | Y97: 8550.81
A98: P8197 | B98: Paleontólogo sênior | C98: mês | D98: 6069.84 | E98: 0.7981 | F98: 4844.34 | G98: 0.1115 | H98: 677.01 | I98: 0.0043 | J98: 26.03 | K98: 0 | L98: 0 | M98: 0 | N98: 0 | O98: 0.0006 | P98: 3.91 | Q98: 0 | R98: 0 | S98: 0.0497 | T98: 301.42 | U98: 0.0016 | V98: 9.98 | W98: 0.9659 | X98: 5862.69 | Y98: 11932.53
A99: P8198 | B99: Sociólogo júnior | C99: mês | D99: 3782.76 | E99: 0.8191 | F99: 3098.46 | G99: 0.179 | H99: 677.01 | I99: 0.0069 | J99: 26.03 | K99: 0 | L99: 0 | M99: 0 | N99: 0 | O99: 0.0015 | P99: 5.55 | Q99: 0 | R99: 0 | S99: 0.0797 | T99: 301.42 | U99: 0.0026 | V99: 9.98 | W99: 1.0887 | X99: 4118.44 | Y99: 7901.19
A100: P8199 | B100: Sociólogo pleno | C100: mês | D100: 5043.67 | E100: 0.8191 | F100: 4131.27 | G100: 0.1342 | H100: 677.01 | I100: 0.0052 | J100: 26.03 | K100: 0 | L100: 0 | M100: 0 | N100: 0 | O100: 0.0011 | P100: 5.55 | Q100: 0 | R100: 0 | S100: 0.0598 | T100: 301.42 | U100: 0.002 | V100: 9.98 | W100: 1.0213 | X100: 5151.26 | Y100: 10194.93
A101: P8200 | B101: Sociólogo sênior | C101: mês | D101: 7915.13 | E101: 0.8191 | F101: 6483.28 | G101: 0.0855 | H101: 677.01 | I101: 0.0033 | J101: 26.03 | K101: 0 | L101: 0 | M101: 0 | N101: 0 | O101: 0.0007 | P101: 5.55 | Q101: 0 | R101: 0 | S101: 0.0381 | T101: 301.42 | U101: 0.0013 | V101: 9.98 | W101: 0.948 | X101: 7503.26 | Y101: 15418.39
A102: Fonte: FGV IBRE

Sheet SICRO EQUIP
A1: CGCIT | B1: SISTEMA DE CUSTOS REFERENCIAIS DE OBRAS - SICRO | K1: DNIT
B2: Pernambuco - Abril/2023
A3: Código | B3: Descrição | C3: Valor de Aquisição (R$) | D3: Depreciação (R$/h) | E3: Oportunidade de Capital (R$/h) | F3: Seguros e Impostos (R$/h) | G3: Manutenção (R$/h) | H3: Operação (R$/h) | I3: Mão de Obra de Operação (R$/h) | J3: Custo Produtivo (R$/h) | K3: Custo Improdutivo (R$/h)
A4: E9001 | B4: Conjunto vibratório para tubos de concreto com encaixe PB e 3 jogos de fôrmas - D = 0,60 m - 2,20 kW | C4: 76806.5453 | D4: 10.2409 | E4: 2.3695 | F4: 0 | G4: 7.6807 | H4: 0 | I4: 0 | J4: 20.2911 | K4: 12.6104
A5: E9002 | B5: Conjunto vibratório para tubos de concreto com encaixe PB e 3 jogos de fôrmas - D = 0,80 m - 2,20 kW | C5: 83388.2319 | D5: 11.1184 | E5: 2.5725 | F5: 0 | G5: 8.3388 | H5: 0 | I5: 0 | J5: 22.0297 | K5: 13.6909
A6: E9003 | B6: Conjunto vibratório para tubos de concreto com encaixe PB e 3 jogos de fôrmas - D = 1,00 m - 2,20 kW | C6: 91709.77 | D6: 12.228 | E6: 2.8292 | F6: 0 | G6: 9.171 | H6: 0 | I6: 0 | J6: 24.2282 | K6: 15.0572
A7: E9004 | B7: Conjunto vibratório para tubos de concreto com encaixe PB e 3 jogos de fôrmas - D = 1,20 m - 2,20 kW | C7: 92222.4751 | D7: 12.2963 | E7: 2.8451 | F7: 0 | G7: 9.2222 | H7: 0 | I7: 0 | J7: 24.3636 | K7: 15.1414
A8: E9005 | B8: Conjunto vibratório para tubos de concreto com encaixe PB e 3 jogos de fôrmas - D = 1,50 m - 2,20 kW | C8: 94214.5224 | D8: 12.5619 | E8: 2.9065 | F8: 0 | G8: 9.4215 | H8: 0 | I8: 0 | J8: 24.8899 | K8: 15.4684
A9: E9006 | B9: Equipamento para sondagem manual | C9: 2422.2022 | D9: 0.4118 | E9: 0.0897 | F9: 0 | G9: 0.2422 | H9: 0 | I9: 0 | J9: 0.7437 | K9: 0.5015
A10: E9007 | B10: Bomba de pistão triplex com capacidade de 7,80 m³/h (130 l/min) - 8,20 kW | C10: 126986.6956 | D10: 10.1589 | E10: 2.3505 | F10: 0 | G10: 8.8891 | H10: 7.9349 | I10: 0 | J10: 29.3334 | K10: 12.5094
A11: E9008 | B11: Transportador manual de tubos de concreto com capacidade de 1 t | C11: 2368.7039 | D11: 2.1318 | E11: 0.1461 | F11: 0 | G11: 1.1844 | H11: 0 | I11: 0 | J11: 3.4623 | K11: 2.2779
A12: E9009 | B12: Embarcação rebocadora - 268 kW | C12: 658695.2031 | D12: 8.5768 | E12: 3.8219 | F12: 0 | G12: 19.0595 | H12: 259.3356 | I12: 139.0418 | J12: 429.8356 | K12: 151.4405
A13: E9010 | B13: Balança plataforma digital à bateria, com mesa de 75 x 75 cm e capacidade de 500 kg | C13: 5562.3245 | D13: 0.8343 | E13: 0.1144 | F13: 0 | G13: 0.4635 | H13: 0 | I13: 0 | J13: 1.4122 | K13: 0.9487
A14: E9011 | B14: Carro manual modelo plataforma de 200 x 80 cm com capacidade de 800 kg | C14: 2112.6406 | D14: 0.3803 | E14: 0.0782 | F14: 0 | G14: 0.2113 | H14: 0 | I14: 0 | J14: 0.6698 | K14: 0.4585
A15: E9014 | B15: Deflectômetro de impacto (FWD) instalado em picape com reboque e faixa de carga de 7 a 120 kN - 147 kW | C15: 2218300.221 | D15: 177.464 | E15: 41.0607 | F15: 0 | G15: 110.915 | H15: 0 | I15: 30.9603 | J15: 360.4 | K15: 249.485
A16: E9015 | B16: Elevador de obra com capacidade de 1.000 kg - 9 kW | C16: 56711.879 | D16: 4.537 | E16: 1.0497 | F16: 0 | G16: 3.9698 | H16: 0 | I16: 25.1582 | J16: 34.7147 | K16: 30.7449
A17: E9016 | B17: Usina misturadora móvel de reciclagem a frio com sistema de espuma de asfalto - 129 kW | C17: 9247269.4 | D17: 539.424 | E17: 166.4123 | F17: 67.428 | G17: 693.5452 | H17: 91.9796 | I17: 36.5778 | J17: 1595.3669 | K17: 809.8421
A18: E9017 | B18: Escavadeira hidráulica sobre esteira com capacidade de 0,4 m³ - 64 kW | C18: 927565.3937 | D18: 64.9296 | E18: 17.1692 | F18: 0 | G18: 64.9296 | H18: 42.3738 | I18: 31.136 | J18: 220.5382 | K18: 113.2348
A19: E9020 | B19: Recicladora a frio - 455 kW | C19: 5004617.122 | D19: 291.936 | E19: 90.0623 | F19: 0 | G19: 417.0514 | H19: 463.463 | I19: 36.5778 | J19: 1299.0905 | K19: 418.5761
A20: E9021 | B20: Grupo gerador - 456 kVA | C20: 350195.6528 | D20: 17.5098 | E20: 6.1734 | F20: 0 | G20: 12.507 | H20: 353.1996 | I20: 0 | J20: 389.3898 | K20: 23.6832
A21: E9022 | B21: Pórtico metálico rolante com capacidade de 25 t - 30 kW | C21: 892959.2519 | D21: 40.1832 | E21: 15.1513 | F21: 0 | G21: 31.2536 | H21: 0 | I21: 25.1582 | J21: 111.7463 | K21: 80.4927
A22: E9023 | B22: Guindaste móvel sobre esteiras com dragline com capacidade de 1,9 a 2,3 m³ - 270 kW | C22: 3687500.119 | D22: 129.0625 | E22: 62.5677 | F22: 0 | G22: 184.375 | H22: 68.7555 | I22: 36.5778 | J22: 481.3385 | K22: 228.208
A23: E9024 | B23: Misturador de nata cimento - 1,50 kW | C23: 7671.3664 | D23: 0.6137 | E23: 0.142 | F23: 0 | G23: 0.537 | H23: 0 | I23: 25.1582 | J23: 26.4509 | K23: 25.9139
A24: E9025 | B24: Conjunto bomba e macaco hidráulico para protensão com capacidade de 7.000 kN - 15 kW | C24: 102595.9637 | D24: 5.8626 | E24: 1.8086 | F24: 0 | G24: 5.8626 | H24: 0 | I24: 36.5778 | J24: 50.1116 | K24: 44.249
A25: E9026 | B25: Bomba para injeção de nata de cimento com capacidade de 2 MPa - 2,20 kW | C25: 29605.8325 | D25: 2.3685 | E25: 0.548 | F25: 0 | G25: 2.0724 | H25: 0 | I25: 0 | J25: 4.9889 | K25: 2.9165
A26: E9028 | B26: Bomba de alta pressão para hidrojateamento com capacidade de 18 MPa - 5,20 kW | C26: 4932.5974 | D26: 0.3946 | E26: 0.0913 | F26: 0 | G26: 0.4439 | H26: 8.5274 | I26: 25.1582 | J26: 34.6154 | K26: 25.6441
A27: E9029 | B27: Conjunto bomba e macaco hidráulico para protensão com capacidade de 8.000 kN - 20 kW | C27: 130429.4823 | D27: 7.4531 | E27: 2.2993 | F27: 0 | G27: 7.4531 | H27: 0 | I27: 36.5778 | J27: 53.7833 | K27: 46.3302
A28: E9030 | B28: Bomba de protensão com leitura digital para tensionamento de estais - 3 kW | C28: 13714.5672 | D28: 0.7837 | E28: 0.2418 | F28: 0 | G28: 0.7837 | H28: 0 | I28: 0 | J28: 1.8092 | K28: 1.0255
A29: E9031 | B29: Elevador de cremalheira com cabine simples, com capacidade de 1.500 kg e altura de até 100 m - 15 kW | C29: 265982.6132 | D29: 21.2786 | E29: 4.9233 | F29: 0 | G29: 18.6188 | H29: 0 | I29: 25.1582 | J29: 69.9789 | K29: 51.3601
A30: E9032 | B30: Equipamento para regulagem final de estais com até 37 cordoalhas - D = 15,7 mm - 20 kW | C30: 86805.0766 | D30: 4.9603 | E30: 1.5302 | F30: 0 | G30: 4.9603 | H30: 0 | I30: 36.5778 | J30: 48.0286 | K30: 43.0683
A31: E9033 | B31: Equipamento para regulagem final de estais de 38 a 55 cordoalhas - D = 15,7 mm - 30 kW | C31: 124007.2523 | D31: 7.0861 | E31: 2.1861 | F31: 0 | G31: 7.0861 | H31: 0 | I31: 36.5778 | J31: 52.9361 | K31: 45.85
A32: E9034 | B32: Equipamento para regulagem final de estais de 56 a 73 cordoalhas - D = 15,7 mm - 40 kW | C32: 186010.8784 | D32: 10.6292 | E32: 3.2791 | F32: 0 | G32: 10.6292 | H32: 0 | I32: 36.5778 | J32: 61.1153 | K32: 50.4861
A33: E9035 | B33: Equipamento para regulagem final de estais de 74 a 91 cordoalhas - D = 15,7 mm - 50 kW | C33: 248014.5046 | D33: 14.1723 | E33: 4.3721 | F33: 0 | G33: 14.1723 | H33: 0 | I33: 36.5778 | J33: 69.2945 | K33: 55.1222
A34: E9036 | B34: Grua fixa para alturas de 60 a 102 m, com alcance de 60 m com capacidade de 1.500 kg na ponta da lança - 37 kW | C34: 3381707.356 | D34: 169.0854 | E34: 59.6147 | F34: 0 | G34: 193.2404 | H34: 0 | I34: 36.5778 | J34: 458.5183 | K34: 265.2779
A35: E9038 | B35: Macaco hidráulico monocordoalha para tensionamento de estais - 3 kW | C35: 17748.388 | D35: 1.0142 | E35: 0.3129 | F35: 0 | G35: 1.0142 | H35: 0 | I35: 36.5778 | J35: 38.9191 | K35: 37.9049
A36: E9039 | B36: Máquina de solda por termofusão para tubos PEAD com gerador de 4 kW | C36: 116604.9556 | D36: 6.6631 | E36: 2.0556 | F36: 0 | G36: 6.6631 | H36: 3.8707 | I36: 36.5778 | J36: 55.8303 | K36: 45.2965
A37: E9040 | B37: Serra mármore - 1,45 kW | C37: 466.1998 | D37: 0.042 | E37: 0.0086 | F37: 0 | G37: 0.0233 | H37: 0 | I37: 0 | J37: 0.0739 | K37: 0.0506
A38: E9042 | B38: Trator sobre esteiras com lâmina - 97 kW | C38: 1053401.46 | D38: 40.9656 | E38: 18.0541 | F38: 0 | G38: 58.5223 | H38: 69.1629 | I38: 31.136 | J38: 217.8409 | K38: 90.1557
A39: E9043 | B39: Embarcação de alumínio com comprimento de 6 m e motor de popa - 18,60 kW | C39: 23182.853 | D39: 0.3622 | E39: 0.1366 | F39: 0 | G39: 0.4025 | H39: 34.8594 | I39: 37.3478 | J39: 73.1085 | K39: 37.8466
A40: E9044 | B40: Central de concreto com capacidade de 150 m³/h - dosadora e misturadora | C40: 3407217.957 | D40: 194.6982 | E40: 60.0644 | F40: 0 | G40: 170.3609 | H40: 0 | I40: 36.5778 | J40: 461.7013 | K40: 291.3404
A41: E9045 | B41: Conjunto bomba e macaco hidráulico para elevação com capacidade de 496 kN | C41: 64318.8299 | D41: 5.1455 | E41: 1.1905 | F41: 0 | G41: 5.1455 | H41: 5.3976 | I41: 36.5778 | J41: 53.4569 | K41: 42.9138
A42: E9046 | B42: Conjunto bomba e macaco hidráulico para elevação com capacidade de 929 kN | C42: 78102.1102 | D42: 6.2482 | E42: 1.4457 | F42: 0 | G42: 6.2482 | H42: 5.3976 | I42: 36.5778 | J42: 55.9175 | K42: 44.2717
A43: E9047 | B43: Conjunto bomba e macaco hidráulico para elevação com capacidade de 1.390 kN | C43: 113464.9889 | D43: 9.0772 | E43: 2.1002 | F43: 0 | G43: 9.0772 | H43: 5.3976 | I43: 36.5778 | J43: 62.23 | K43: 47.7552
A44: E9048 | B44: Conjunto bomba e macaco hidráulico para elevação com capacidade de 1.859 kN | C44: 131718.3067 | D44: 10.5375 | E44: 2.4381 | F44: 0 | G44: 10.5375 | H44: 5.3976 | I44: 36.5778 | J44: 65.4885 | K44: 49.5534
A45: E9049 | B45: Bomba de alta pressão para hidrojateamento com capacidade de 250 MPa - 72 kW | C45: 486563.198 | D45: 38.9251 | E45: 9.0063 | F45: 0 | G45: 43.7907 | H45: 55.0044 | I45: 25.1582 | J45: 171.8847 | K45: 73.0896
A46: E9050 | B46: Guindaste móvel sobre pneus com 2 eixos com capacidade de 18 t - 97 kW | C46: 2824660.182 | D46: 141.233 | E46: 49.7947 | F46: 0 | G46: 181.5853 | H46: 24.7011 | I46: 30.9603 | J46: 428.2744 | K46: 221.988
A47: E9051 | B47: Máquina levantadora e posicionadora de via - 7,40 kW | C47: 779365.9315 | D47: 62.3493 | E47: 14.4261 | F47: 0 | G47: 54.5556 | H47: 9.7081 | I47: 25.1582 | J47: 166.1973 | K47: 101.9336
A48: E9052 | B48: Empilhadeira a diesel com capacidade de 10 t - 82 kW | C48: 847041.7328 | D48: 67.7633 | E48: 15.6787 | F48: 0 | G48: 59.2929 | H48: 62.6439 | I48: 25.1582 | J48: 230.537 | K48: 108.6002
A49: E9053 | B49: Perfuratriz hidráulica montada em flutuante - 32 kW | C49: 370236.276 | D49: 11.5699 | E49: 2.3795 | F49: 0 | G49: 10.2843 | H49: 16.2976 | I49: 30.7302 | J49: 71.2615 | K49: 44.6796
A50: E9054 | B50: Equipamento sobre forma-trilho para execução e acabamento de pavimento de concreto - 13,40 kW | C50: 1403006.403 | D50: 112.2405 | E50: 25.9696 | F50: 0 | G50: 70.1503 | H50: 17.5796 | I50: 25.1582 | J50: 251.0982 | K50: 163.3683
A51: E9055 | B51: Guincho pneumático com capacidade de 2,5 t | C51: 526016.694 | D51: 47.3415 | E51: 9.7366 | F51: 0 | G51: 26.3008 | H51: 0 | I51: 0 | J51: 83.3789 | K51: 57.0781
A52: E9056 | B52: Plataforma autoelevatória de 12 x 24 m com capacidade de 150 t | C52: 914407.4415 | D52: 7.1438 | E52: 5.1424 | F52: 0 | G52: 15.8751 | H52: 0 | I52: 94.0507 | J52: 122.212 | K52: 106.3369
A53: E9057 | B53: Batelão sem propulsão com capacidade de 66 m³ | C53: 244526.3983 | D53: 1.9104 | E53: 1.3751 | F53: 0 | G53: 3.1839 | H53: 0 | I53: 24.4689 | J53: 30.9383 | K53: 27.7544
A54: E9058 | B54: Plataforma flutuante de 12 x 24 x 1,8 m com capacidade de 150 t | C54: 731336.8559 | D54: 5.7136 | E54: 4.1128 | F54: 0 | G54: 9.5226 | H54: 0 | I54: 24.4689 | J54: 43.8179 | K54: 34.2953
A55: E9059 | B55: Plataforma autoelevatória de 12 x 24 m montada na obra com capacidade de 150 t | C55: 914407.4415 | D55: 7.1438 | E55: 5.1424 | F55: 0 | G55: 15.8751 | H55: 0 | I55: 94.0507 | J55: 122.212 | K55: 106.3369
A56: E9060 | B56: Perfuratriz pneumática rotopercussiva montada em flutuante com pressão de 0,70 MPa e capacidade de 2.500 gpm | C56: 21929.1209 | D56: 0.6853 | E56: 0.1409 | F56: 0 | G56: 0.6091 | H56: 0 | I56: 61.4604 | J56: 62.8957 | K56: 62.2866
A57: E9061 | B57: Lixadeira elétrica manual angular - 2 kW | C57: 1386.9997 | D57: 0.111 | E57: 0.0257 | F57: 0 | G57: 0.0693 | H57: 0 | I57: 0 | J57: 0.206 | K57: 0.1367
A58: E9062 | B58: Soprador de ar quente manual - 1,60 kW | C58: 4765.0018 | D58: 0.6353 | E58: 0.098 | F58: 0 | G58: 0.3971 | H58: 0 | I58: 0 | J58: 1.1304 | K58: 0.7333
A59: E9063 | B59: Equipamento de estabilização dinâmica da via - 300 kW | C59: 25180535.72 | D59: 1007.2214 | E59: 427.2507 | F59: 0 | G59: 1007.2214 | H59: 183.348 | I59: 36.5778 | J59: 2661.6193 | K59: 1471.0499
A60: E9064 | B60: Transportador manual gerica com capacidade de 180 l | C60: 1091.8873 | D60: 1.0919 | E60: 0.0674 | F60: 0 | G60: 0.5459 | H60: 0 | I60: 0 | J60: 1.7052 | K60: 1.1593
A61: E9065 | B61: Carro controle ferroviário - 186 kW | C61: 30351234.96 | D61: 1214.0494 | E61: 514.9846 | F61: 0 | G61: 1062.2932 | H61: 113.6758 | I61: 36.5778 | J61: 2941.5808 | K61: 1765.6118
A62: E9066 | B62: Grupo gerador - 14 kVA | C62: 69455.9772 | D62: 3.4728 | E62: 1.2244 | F62: 0 | G62: 2.4806 | H62: 10.6444 | I62: 0 | J62: 17.8222 | K62: 4.6972
A63: E9067 | B63: Veículo ferroviário para capina química com capacidade de 12.000 l - 115 kW | C63: 1693050.933 | D63: 67.722 | E63: 28.7268 | F63: 0 | G63: 42.3263 | H63: 70.2834 | I63: 25.1582 | J63: 234.2167 | K63: 121.607
A64: E9068 | B64: Perfuratriz hidráulica rotopercussiva para CCPH - 123 kW | C64: 2704337.16 | D64: 180.2891 | E64: 48.6668 | F64: 0 | G64: 180.2891 | H64: 93.9659 | I64: 31.136 | J64: 534.3469 | K64: 260.0919
A65: E9069 | B65: Vibrador de imersão para concreto - 4,10 kW | C65: 3884.457 | D65: 0.6215 | E65: 0.1438 | F65: 0 | G65: 0.3884 | H65: 6.7235 | I65: 0 | J65: 7.8772 | K65: 0.7653
A66: E9070 | B66: Ponte rolante com capacidade de 5 t e vão de até 15 m - 10 kW | C66: 362915.4997 | D66: 14.5166 | E66: 6.1578 | F66: 0 | G66: 9.0729 | H66: 0 | I66: 25.1582 | J66: 54.9055 | K66: 45.8326
A67: E9071 | B67: Transportador manual carrinho de mão com capacidade de 80 l | C67: 515.4865 | D67: 0.5155 | E67: 0.0318 | F67: 0 | G67: 0.2577 | H67: 0 | I67: 0 | J67: 0.805 | K67: 0.5473
A68: E9072 | B68: Martelo hidráulico vibratório com unidade hidráulica - 486 kW | C68: 2969164.218 | D68: 197.9443 | E68: 53.4326 | F68: 0 | G68: 173.2012 | H68: 371.2797 | I68: 36.5778 | J68: 832.4356 | K68: 287.9547
A69: E9073 | B69: Bomba de concreto rebocável com capacidade de 30 m³/h - 74 kW | C69: 480184.4528 | D69: 38.4148 | E69: 8.8882 | F69: 0 | G69: 38.4148 | H69: 71.6076 | I69: 25.1582 | J69: 182.4836 | K69: 72.4612
A70: E9074 | B70: Tanque de estocagem de asfalto com agitadores de 60.000 l | C70: 818448.5816 | D70: 34.102 | E70: 11.8355 | F70: 0 | G70: 21.3138 | H70: 0 | I70: 0 | J70: 67.2513 | K70: 45.9375
A71: E9075 | B71: Trado cavadeira de 12" | C71: 140.285 | D71: 0.0701 | E71: 0.0065 | F71: 0 | G71: 0.0351 | H71: 0 | I71: 0 | J71: 0.1117 | K71: 0.0766
A72: E9076 | B72: Equipamento para pintura eletrostática com cabine dupla de 7,00 kW e estufa de 80.000 kCal | C72: 163889.3324 | D72: 10.5357 | E72: 2.8891 | F72: 0 | G72: 5.8532 | H72: 0 | I72: 25.1582 | J72: 44.4362 | K72: 38.583
A73: E9077 | B73: Perfuratriz de circulação reversa tipo Wirth ou similar com unidade hidráulica (Power Pack) - 273 kW | C73: 4923076.109 | D73: 328.2051 | E73: 88.5949 | F73: 0 | G73: 328.2051 | H73: 139.0389 | I73: 31.136 | J73: 915.18 | K73: 447.936
A74: E9078 | B74: Treliça lançadeira com capacidade de carga de 100 a 120 t e vão máximo de 45 m - 110 kW | C74: 3539353.117 | D74: 94.3827 | E74: 58.2342 | F74: 0 | G74: 58.9892 | H74: 0 | I74: 36.5778 | J74: 248.1839 | K74: 189.1947
A75: E9079 | B75: Bomba submersível com capacidade de 360 m³/h - 23 kW | C75: 179754.2734 | D75: 14.3803 | E75: 3.3273 | F75: 0 | G75: 12.5828 | H75: 0 | I75: 0 | J75: 30.2904 | K75: 17.7076
A76: E9080 | B76: Carrelone com capacidade máxima de 70 t | C76: 1765067.999 | D76: 79.4281 | E76: 29.9488 | F76: 0 | G76: 44.1267 | H76: 0 | I76: 25.1582 | J76: 178.6618 | K76: 134.5351
A77: E9081 | B77: Fischietti simples com capacidade de 70 t | C77: 104902.7055 | D77: 4.7206 | E77: 1.7799 | F77: 0 | G77: 2.6226 | H77: 0 | I77: 25.1582 | J77: 34.2813 | K77: 31.6587
A78: E9083 | B78: Vagão fechado FLT com capacidade de 99 t | C78: 800000 | D78: 12.6667 | E78: 12.7513 | F78: 0 | G78: 6.6667 | H78: 0 | I78: 0 | J78: 32.0847 | K78: 25.418
A79: E9084 | B79: Vagão tanque convencional TCT com capacidade de 97 t e 103.000 l | C79: 1195000 | D79: 18.9208 | E79: 19.0473 | F79: 0 | G79: 9.9583 | H79: 0 | I79: 0 | J79: 47.9264 | K79: 37.9681
A80: E9085 | B80: Vagão gôndola GDE com capacidade de 93,5 t / 29 m³ | C80: 620000 | D80: 9.8167 | E80: 9.8823 | F80: 0 | G80: 5.1667 | H80: 0 | I80: 0 | J80: 24.8657 | K80: 19.699
A81: E9086 | B81: Bomba de concreto rebocável com capacidade de 41 m³/h - 74 kW | C81: 530334.4528 | D81: 42.4268 | E81: 9.8165 | F81: 0 | G81: 42.4268 | H81: 71.6076 | I81: 25.1582 | J81: 191.4359 | K81: 77.4015
A82: E9089 | B82: Roçadeira costal - 1,40 kW | C82: 2656.6326 | D82: 0.3985 | E82: 0.0546 | F82: 0 | G82: 0.3099 | H82: 7.2155 | I82: 0 | J82: 7.9785 | K82: 0.4531
A83: E9091 | B83: Embarcação empurradora fluvial - 372 kW | C83: 1103879.461 | D83: 14.3734 | E83: 6.405 | F83: 0 | G83: 31.941 | H83: 359.9732 | I83: 139.0418 | J83: 551.7344 | K83: 159.8202
A84: E9093 | B84: Veículo leve - 53 kW (sem motorista) | C84: 74357.9159 | D84: 4.4615 | E84: 1.3764 | F84: 0.5577 | G84: 4.4615 | H84: 22.3494 | I84: 0 | J84: 33.2065 | K84: 6.3956
A85: E9094 | B85: Guindaste móvel sobre pneus com 6 eixos com capacidade máxima de 350 t - 450 kW | C85: 16956771.75 | D85: 847.8386 | E85: 298.9237 | F85: 121.1198 | G85: 1090.0782 | H85: 114.5925 | I85: 30.9603 | J85: 2503.5131 | K85: 1298.8424
A86: E9095 | B86: Guindaste móvel sobre pneus com 8 eixos com capacidade máxima de 500 t - 500 kW | C86: 29742665.1 | D86: 1487.1333 | E86: 524.3207 | F86: 212.4476 | G86: 1912.0285 | H86: 127.325 | I86: 30.9603 | J86: 4294.2154 | K86: 2254.8619
A87: E9096 | B87: Minicarregadeira de pneus - 45,50 kW | C87: 366467.1597 | D87: 25.6527 | E87: 6.7833 | F87: 0 | G87: 25.6527 | H87: 57.9329 | I87: 31.136 | J87: 147.1576 | K87: 63.572
A88: E9101 | B88: Removedora de faixas de sinalização viária - 9,69 kW | C88: 50693.0773 | D88: 4.0554 | E88: 0.9383 | F88: 0 | G88: 3.5485 | H88: 15.8905 | I88: 0 | J88: 24.4327 | K88: 4.9937
A89: E9102 | B89: Extrusora para sarjeta de concreto - 10,44 kW | C89: 66675.9874 | D89: 5.3341 | E89: 1.2342 | F89: 0 | G89: 4.6673 | H89: 7.9756 | I89: 25.1582 | J89: 44.3694 | K89: 31.7265
A90: E9103 | B90: Extrusora para meio-fio de concreto - 10,44 kW | C90: 55956.0575 | D90: 4.4765 | E90: 1.0357 | F90: 0 | G90: 3.9169 | H90: 7.9756 | I90: 25.1582 | J90: 42.5629 | K90: 30.6704
A91: E9105 | B91: Embarcação empurradora multipropósito - 2 x 186 kW | C91: 5302261.79 | D91: 69.0399 | E91: 30.7649 | F91: 0 | G91: 153.4219 | H91: 359.9732 | I91: 139.0418 | J91: 752.2417 | K91: 238.8466
A92: E9106 | B92: Balsa de convés com capacidade de 200 t | C92: 2093591.228 | D92: 16.3562 | E92: 11.7737 | F92: 0 | G92: 27.2603 | H92: 0 | I92: 24.4689 | J92: 79.8591 | K92: 52.5988
A93: E9107 | B93: Compactador manual com soquete vibratório - 2,24 kW | C93: 9499.5336 | D93: 0.6333 | E93: 0.171 | F93: 0 | G93: 0.6333 | H93: 3.6734 | I93: 0 | J93: 5.111 | K93: 0.8043
A94: E9108 | B94: Soldadora de trilho por caldeamento na via - 400 kW | C94: 8954977.623 | D94: 143.2796 | E94: 143.6558 | F94: 0 | G94: 179.0996 | H94: 244.464 | I94: 73.1556 | J94: 783.6546 | K94: 360.091
A95: E9110 | B95: Escavadeira hidráulica sobre esteiras para rocha com caçamba com capacidade de 1,56 m³ - 118 kW | C95: 1364490.917 | D95: 136.4491 | E95: 27.0608 | F95: 0 | G95: 136.4491 | H95: 114.1851 | I95: 31.136 | J95: 445.2801 | K95: 194.6459
A96: E9111 | B96: Jateador abrasivo úmido com capacidade de 350 kg de abrasivo | C96: 210803.7035 | D96: 18.9723 | E96: 3.902 | F96: 0 | G96: 18.9723 | H96: 0 | I96: 25.1582 | J96: 67.0048 | K96: 48.0325
A97: E9112 | B97: Sinalizador direcional móvel com sistema fotovoltaico de energia e montado em chassi sobre pneus | C97: 22664.914 | D97: 2.0398 | E97: 0.4195 | F97: 0 | G97: 1.1332 | H97: 0 | I97: 0 | J97: 3.5925 | K97: 2.4593
A98: E9113 | B98: Painel de Mensagem Variável - PMV móvel, com sistema fotovoltaico de energia e montado em chassi sobre pneus | C98: 169254.4528 | D98: 15.2329 | E98: 3.1329 | F98: 0 | G98: 8.4627 | H98: 0 | I98: 0 | J98: 26.8285 | K98: 18.3658
A99: E9116 | B99: Semáforo móvel com 3 lentes e bateria - D = 200 mm | C99: 7684.9818 | D99: 0.6916 | E99: 0.1422 | F99: 0 | G99: 0.3842 | H99: 0 | I99: 0 | J99: 1.218 | K99: 0.8338
A100: E9117 | B100: Carregadeira de pneus para rocha com capacidade de 2,50 m³ - 105 kW | C100: 712765.1981 | D100: 71.2765 | E100: 14.1357 | F100: 0 | G100: 71.2765 | H100: 101.6054 | I100: 31.136 | J100: 289.4301 | K100: 116.5482
A101: E9118 | B101: Cortadora de pavimento com disco diamantado de 450 a 1.500 mm - 55,40 kW | C101: 488319.26 | D101: 39.0655 | E101: 9.0388 | F101: 0 | G101: 39.0655 | H101: 42.3228 | I101: 25.1582 | J101: 154.6508 | K101: 73.2625
A102: E9119 | B102: Minicarregadeira sobre pneus com valetadeira - 55,40 kW | C102: 496959.9412 | D102: 34.7872 | E102: 9.1987 | F102: 0 | G102: 34.7872 | H102: 70.5381 | I102: 31.136 | J102: 180.4472 | K102: 75.1219
A103: E9120 | B103: Equipamento de cravação sobre esteira para geodreno com haste para profundidade de até 20 m - 258 kW | C103: 3919033.306 | D103: 274.3323 | E103: 72.5413 | F103: 0 | G103: 274.3323 | H103: 170.8192 | I103: 25.1582 | J103: 817.1833 | K103: 372.0318
A104: E9122 | B104: Perfuratriz tipo Bottom Feed para coluna de brita - 194 kW | C104: 4460578.886 | D104: 297.3719 | E104: 80.2718 | F104: 0 | G104: 297.3719 | H104: 98.8042 | I104: 31.136 | J104: 804.9558 | K104: 408.7797
A105: E9125 | B105: Veículo tipo van furgão com capacidade de 1,54 t - 93 kW | C105: 211016.3199 | D105: 10.5508 | E105: 3.7974 | F105: 1.5387 | G105: 10.5508 | H105: 23.6825 | I105: 27.8191 | J105: 77.9393 | K105: 43.706
A106: E9126 | B106: Draga backhoe com capacidade de 7 m³ - 1.000 kW | C106: 86279801.59 | D106: 970.6478 | E106: 698.7046 | F106: 0 | G106: 2156.995 | H106: 967.67 | I106: 64.8848 | J106: 4858.9022 | K106: 1734.2372
A107: E9127 | B107: Escavadeira hidráulica com martelo hidráulico de 520 kg - 75 kW | C107: 1508852.793 | D107: 172.4403 | E107: 29.9238 | F107: 0 | G107: 215.5504 | H107: 49.6568 | I107: 31.136 | J107: 498.7073 | K107: 233.5001
A108: E9134 | B108: Miniônibus com capacidade para 30 passageiros - 111 kW | C108: 601355.8272 | D108: 25.7724 | E108: 10.601 | F108: 4.2954 | G108: 38.6586 | H108: 107.4114 | I108: 30.9429 | J108: 217.6817 | K108: 71.6117
A109: E9141 | B109: Rebarbador hidráulico com bomba manual com capacidade de força de 9.000 kgf | C109: 89830.0075 | D109: 7.1864 | E109: 1.6628 | F109: 0 | G109: 4.4915 | H109: 0 | I109: 0 | J109: 13.3407 | K109: 8.8492
A110: E9144 | B110: Pórtico metálico rolante com talha com capacidade de 5 t - 10 kW | C110: 291130.3348 | D110: 11.6452 | E110: 4.9398 | F110: 0 | G110: 7.2783 | H110: 0 | I110: 25.1582 | J110: 49.0215 | K110: 41.7432
A111: E9148 | B111: Macaco de protensão de fios com bomba - 3,72 kW | C111: 95274.1576 | D111: 5.4442 | E111: 1.6795 | F111: 0 | G111: 5.4442 | H111: 0 | I111: 36.5778 | J111: 49.1457 | K111: 43.7015
A112: E9149 | B112: Máquina de aplicação e extração de grampo elástico tipo Pandrol - 6,70 kW | C112: 265295.9024 | D112: 21.2237 | E112: 4.9106 | F112: 0 | G112: 21.2237 | H112: 8.7898 | I112: 0 | J112: 56.1478 | K112: 26.1343
A113: E9151 | B113: Britador de mandíbulas móvel sobre esteiras, sem peneira, com capacidade de 140 m³/h - 170 kW | C113: 3286947.302 | D113: 187.8256 | E113: 57.9442 | F113: 0 | G113: 187.8256 | H113: 155.8458 | I113: 36.5778 | J113: 626.019 | K113: 282.3476
A114: E9152 | B114: Ferramenta de fixação à pólvora de ação direta | C114: 1092.3095 | D114: 0.0928 | E114: 0.0202 | F114: 0 | G114: 0.0874 | H114: 0 | I114: 0 | J114: 0.2004 | K114: 0.113
A115: E9153 | B115: Ferramenta de fixação à pólvora e sistema à pistão | C115: 1016.9006 | D115: 0.0864 | E115: 0.0188 | F115: 0 | G115: 0.0814 | H115: 0 | I115: 0 | J115: 0.1866 | K115: 0.1052
A116: E9154 | B116: Equipamento para selagem com material asfáltico rebocável com capacidade de 370 l - 35 kW | C116: 431176.5616 | D116: 27.7185 | E116: 7.601 | F116: 0 | G116: 9.2395 | H116: 26.7383 | I116: 25.1582 | J116: 96.4555 | K116: 60.4777
A117: E9155 | B117: Caldeira de asfalto rebocável com capacidade de 600 l - 5,20 kW | C117: 120179.8472 | D117: 7.7258 | E117: 2.1186 | F117: 0 | G117: 2.5753 | H117: 3.7077 | I117: 0 | J117: 16.1274 | K117: 9.8444
A118: E9156 | B118: Soprador de ar costal - 2,6 kW | C118: 2323.7928 | D118: 0.3718 | E118: 0.086 | F118: 0 | G118: 0.3253 | H118: 4.2637 | I118: 0 | J118: 5.0468 | K118: 0.4578
A119: E9157 | B119: Locomotiva diesel-elétrica CC - bitola métrica - 2.237 kW | C119: 8250000 | D119: 132 | E119: 132.3465 | F119: 0 | G119: 165 | H119: 1367.1649 | I119: 33.0622 | J119: 1829.5736 | K119: 297.4087
A120: E9158 | B120: Locomotiva diesel-elétrica CC - bitola larga - 2.237 kW | C120: 8250000 | D120: 132 | E120: 132.3465 | F120: 0 | G120: 165 | H120: 1367.1649 | I120: 33.0622 | J120: 1829.5736 | K120: 297.4087
A121: E9159 | B121: Vagão plataforma PNE com capacidade de 82 t - bitola métrica | C121: 667000 | D121: 10.5608 | E121: 10.6314 | F121: 0 | G121: 5.5583 | H121: 0 | I121: 0 | J121: 26.7505 | K121: 21.1922
A122: E9160 | B122: Vagão plataforma PNT com capacidade de 98 t - bitola larga | C122: 746000 | D122: 11.8117 | E122: 11.8906 | F122: 0 | G122: 6.2167 | H122: 0 | I122: 0 | J122: 29.919 | K122: 23.7023
A123: E9161 | B123: Vagão fechado com porta para carga e descarga de paletes FLD com capacidade de 64 t - bitola métrica | C123: 730000 | D123: 11.5583 | E123: 11.6356 | F123: 0 | G123: 6.0833 | H123: 0 | I123: 0 | J123: 29.2772 | K123: 23.1939
A124: E9162 | B124: Vagão fechado com porta para carga e descarga de paletes FLT com capacidade de 99 t - bitola larga | C124: 800000 | D124: 12.6667 | E124: 12.7513 | F124: 0 | G124: 6.6667 | H124: 0 | I124: 0 | J124: 32.0847 | K124: 25.418
A125: E9163 | B125: Vagão hopper aberto com descarga automática HNE com capacidade de 45 m³ - bitola métrica | C125: 880000 | D125: 13.9333 | E125: 14.0265 | F125: 0 | G125: 7.3333 | H125: 0 | I125: 0 | J125: 35.2931 | K125: 27.9598
A126: E9164 | B126: Vagão hopper aberto com descarga automática HNT com capacidade de 63 m³ - bitola larga | C126: 915000 | D126: 14.4875 | E126: 14.5843 | F126: 0 | G126: 7.625 | H126: 0 | I126: 0 | J126: 36.6968 | K126: 29.0718
A127: E9167 | B127: Equipamento para carga e descarga de TLS de até 250 m - 90 kW | C127: 2633902.579 | D127: 42.1424 | E127: 42.2531 | F127: 0 | G127: 52.6781 | H127: 55.0044 | I127: 36.5778 | J127: 228.6558 | K127: 120.9733
A128: E9168 | B128: Carregadeira de pneus com implemento de garfo - 195 kW | C128: 1875079.584 | D128: 131.2556 | E128: 34.7077 | F128: 0 | G128: 131.2556 | H128: 79.4508 | I128: 31.136 | J128: 407.8057 | K128: 197.0993
A129: E9200 | B129: Carregadeira de pneus para rocha com capacidade de 2,50 m³ - 105 kW com periculosidade | C129: 712765.1981 | D129: 71.2765 | E129: 14.1357 | F129: 0 | G129: 71.2765 | H129: 101.6054 | I129: 38.5026 | J129: 296.7967 | K129: 123.9148
A130: E9203 | B130: Escavadeira hidráulica com martelo hidráulico de 1.700 kg - 103 kW com periculosidade | C130: 2275311.275 | D130: 260.0356 | E130: 45.1243 | F130: 0 | G130: 325.0445 | H130: 68.1953 | I130: 38.5026 | J130: 736.9023 | K130: 343.6625
A131: E9204 | B131: Perfuratriz sobre esteiras - 145 kW com periculosidade | C131: 1965011.146 | D131: 131.0007 | E131: 35.362 | F131: 0 | G131: 131.0007 | H131: 110.7728 | I131: 38.5026 | J131: 446.6388 | K131: 204.8653
A132: E9205 | B132: Equipamento de corte a plasma CNC - 12.000 x 5.500 mm - 19,5 kW | C132: 1075636.63 | D132: 86.0509 | E132: 19.91 | F132: 0 | G132: 64.5382 | H132: 0 | I132: 0 | J132: 170.4991 | K132: 105.9609
A133: E9206 | B133: Equipamento de solda MIG automática com acessórios - 14,6 kVA | C133: 87345.0097 | D133: 6.9876 | E133: 1.6168 | F133: 0 | G133: 6.9876 | H133: 0 | I133: 0 | J133: 15.592 | K133: 8.6044
A134: E9207 | B134: Máquina de solda elétrica retificadora 425 A - 18,70 kW | C134: 4538.5098 | D134: 0.3631 | E134: 0.084 | F134: 0 | G134: 0.3631 | H134: 0 | I134: 0 | J134: 0.8102 | K134: 0.4471
A135: E9209 | B135: Martelete perfurador/rompedor a ar comprimido de 25 kg para rocha, com insalubridade, com capacidade de 2.040 gpm | C135: 20175.7396 | D135: 1.6141 | E135: 0.3735 | F135: 0 | G135: 1.6141 | H135: 0 | I135: 32.024 | J135: 35.6257 | K135: 34.0116
A136: E9213 | B136: Jumbo eletro-hidráulico com 3 braços - 155 kW/237 kW com periculosidade | C136: 12062164.73 | D136: 804.1443 | E136: 217.0687 | F136: 0 | G136: 1005.1804 | H136: 165.7772 | I136: 45.6386 | J136: 2237.8092 | K136: 1066.8516
A137: E9242 | B137: Estação transmissora de superfície para televisionamento | C137: 11361.6811 | D137: 0.7304 | E137: 0.2003 | F137: 0 | G137: 0.4058 | H137: 0 | I137: 0 | J137: 1.3365 | K137: 0.9307
A138: E9243 | B138: Câmara hiperbárica com filtro, serpentina e reservatório de ar para mergulho raso - D = 1,80 m e H = 2,22 m. | C138: 298078.6132 | D138: 5.2164 | E138: 4.8278 | F138: 0 | G138: 7.452 | H138: 0 | I138: 49.3512 | J138: 66.8474 | K138: 59.3954
A139: E9244 | B139: Estação transmissora de superfície para comunicação sem fio | C139: 37767.8948 | D139: 2.4279 | E139: 0.6658 | F139: 0 | G139: 1.3489 | H139: 0 | I139: 0 | J139: 4.4426 | K139: 3.0937
A140: E9245 | B140: Estação transmissora de superfície para comunicação com fio | C140: 6330.0794 | D140: 0.4069 | E140: 0.1116 | F140: 0 | G140: 0.2261 | H140: 0 | I140: 0 | J140: 0.7446 | K140: 0.5185
A141: E9246 | B141: Painel de controle de ar com manômetros e pneufatômetros | C141: 12147.5394 | D141: 0.7809 | E141: 0.2141 | F141: 0 | G141: 0.4338 | H141: 0 | I141: 0 | J141: 1.4288 | K141: 0.995
A142: E9247 | B142: Sistema de Sino aberto (sinete) para mergulho até 50 m - 33,50 kW | C142: 550469.5855 | D142: 14.6792 | E142: 9.0571 | F142: 0 | G142: 14.6792 | H142: 0 | I142: 49.3512 | J142: 87.7667 | K142: 73.0875
A143: E9248 | B143: Sistema de ar comprimido para mergulho até 30 m com pressão de trabalho de 1,4 MPa - 7,46 kW | C143: 50363.0422 | D143: 3.3575 | E143: 0.9063 | F143: 0 | G143: 3.3575 | H143: 6.4589 | I143: 0 | J143: 14.0802 | K143: 4.2638
A144: E9249 | B144: Sistema de ar comprimido para mergulho até 50 m com pressão de trabalho de 1,7 MPa - 16,18 kW | C144: 77065.7419 | D144: 5.1377 | E144: 1.3869 | F144: 0 | G144: 5.1377 | H144: 14.0088 | I144: 0 | J144: 25.6711 | K144: 6.5246
A145: E9251 | B145: Fonte de plasma para corte manual - 65A - 15 kW | C145: 32634.4672 | D145: 2.6108 | E145: 0.6041 | F145: 0 | G145: 2.6108 | H145: 0 | I145: 0 | J145: 5.8257 | K145: 3.2149
A146: E9252 | B146: Serra de esquadria com braço telescópico - D = 250 mm (10") - 1,80 kW | C146: 5248.7453 | D146: 0.4724 | E146: 0.0972 | F146: 0 | G146: 0.2624 | H146: 0 | I146: 0 | J146: 0.832 | K146: 0.5696
A147: E9253 | B147: Rebordeadeira diâmetro máximo 3,00 m - 4,85 kW | C147: 76420.0224 | D147: 3.0568 | E147: 1.2967 | F147: 0 | G147: 2.6747 | H147: 0 | I147: 0 | J147: 7.0282 | K147: 4.3535
A148: E9254 | B148: Dobradeira viradeira manual comprimento máximo de dobra de até 2.000 mm | C148: 18667.3606 | D148: 0.7467 | E148: 0.3167 | F148: 0 | G148: 0.6534 | H148: 0 | I148: 0 | J148: 1.7168 | K148: 1.0634
A149: E9255 | B149: Fonte de plasma para corte manual - 45A - 10 kW | C149: 21888.2844 | D149: 1.7511 | E149: 0.4052 | F149: 0 | G149: 1.7511 | H149: 0 | I149: 0 | J149: 3.9074 | K149: 2.1563
A150: E9256 | B150: Equipamento para pintura com cal rebocável com dois bicos aplicadores e capacidade de 2.200 l | C150: 66604.0039 | D150: 3.8059 | E150: 1.1741 | F150: 0 | G150: 3.8059 | H150: 0 | I150: 25.1582 | J150: 33.9441 | K150: 30.1382
A151: E9501 | B151: Ventilador axial para ventilação forçada com velocidade de saída de 32,8 m/s - D = 1.000 mm - 30 kW | C151: 441324.527 | D151: 39.7192 | E151: 8.1689 | F151: 0 | G151: 26.4795 | H151: 0 | I151: 0 | J151: 74.3676 | K151: 47.8881
A152: E9502 | B152: Bate-estaca de gravidade para 6 t - 119 kW | C152: 965788.6198 | D152: 55.1879 | E152: 17.0255 | F152: 0 | G152: 41.3909 | H152: 78.7887 | I152: 31.136 | J152: 223.529 | K152: 103.3494
A153: E9503 | B153: Guilhotina hidráulica 16 x 6.100 mm - 30 kW | C153: 1328764.055 | D153: 53.1506 | E153: 22.5458 | F153: 0 | G153: 46.5067 | H153: 0 | I153: 25.1582 | J153: 147.3613 | K153: 100.8546
A154: E9505 | B154: Prensa dobradeira capacidade 320 t - comprimento até 3.100 mm - 30 kW | C154: 839972.17 | D154: 33.5989 | E154: 14.2522 | F154: 0 | G154: 29.399 | H154: 0 | I154: 25.1582 | J154: 102.4083 | K154: 73.0093
A155: E9507 | B155: Plotadora de recorte com computador e programa computacional | C155: 87469.2044 | D155: 13.1204 | E155: 1.7989 | F155: 0 | G155: 8.7469 | H155: 0 | I155: 0 | J155: 23.6662 | K155: 14.9193
A156: E9510 | B156: Ventilador centrífugo baixa pressão com capacidade de 58 m³/min - 3,68 kW | C156: 12912.1674 | D156: 1.1621 | E156: 0.239 | F156: 0 | G156: 0.7747 | H156: 0 | I156: 0 | J156: 2.1758 | K156: 1.4011
A157: E9511 | B157: Carregadeira de pneus com capacidade de 3,40 m³ - 195 kW | C157: 1868409.608 | D157: 130.7887 | E157: 34.5843 | F157: 0 | G157: 130.7887 | H157: 79.4508 | I157: 31.136 | J157: 406.7485 | K157: 196.509
A158: E9512 | B158: Veículo leve - 53 kW | C158: 74357.9159 | D158: 4.4615 | E158: 1.3764 | F158: 0.5577 | G158: 4.4615 | H158: 22.3494 | I158: 27.8191 | J158: 61.0256 | K158: 34.2147
A159: E9513 | B159: Compressor de ar portátil de 160,46 l/s (340 PCM) - 81 kW | C159: 289287.1716 | D159: 19.2858 | E159: 5.206 | F159: 0 | G159: 19.2858 | H159: 70.1306 | I159: 0 | J159: 113.9082 | K159: 24.4918
A160: E9514 | B160: Distribuidor de agregados sobre pneus autopropelido - 130 kW | C160: 909322.0148 | D160: 51.9613 | E160: 16.03 | F160: 0 | G160: 45.4661 | H160: 125.7971 | I160: 31.136 | J160: 270.3905 | K160: 99.1273
A161: E9515 | B161: Escavadeira hidráulica sobre esteiras com caçamba com capacidade de 1,56 m³ - 118 kW | C161: 1364490.917 | D161: 95.5144 | E161: 25.2567 | F161: 0 | G161: 95.5144 | H161: 78.1266 | I161: 31.136 | J161: 325.5481 | K161: 151.9071
A162: E9516 | B162: Perfuratriz hidráulica sobre esteiras - 283 kW | C162: 4921526.139 | D162: 328.1017 | E162: 88.567 | F162: 0 | G162: 328.1017 | H162: 144.1319 | I162: 31.136 | J162: 920.0383 | K162: 447.8047
A163: E9518 | B163: Grade de 24 discos rebocável de D = 60 cm (24") | C163: 41617.3205 | D163: 2.6754 | E163: 0.7337 | F163: 0 | G163: 1.4863 | H163: 0 | I163: 0 | J163: 4.8954 | K163: 3.4091
A164: E9519 | B164: Betoneira com motor a gasolina com capacidade de 600 l - 10 kW | C164: 38183.1111 | D164: 3.0546 | E164: 0.7068 | F164: 0 | G164: 2.291 | H164: 16.3989 | I164: 25.1582 | J164: 47.6095 | K164: 28.9196
A165: E9521 | B165: Grupo gerador - 3,2 kVA | C165: 4011.1622 | D165: 0.2006 | E165: 0.0707 | F165: 0 | G165: 0.1433 | H165: 3.8983 | I165: 0 | J165: 4.3129 | K165: 0.2713
A166: E9522 | B166: Caldeira de asfalto rebocável com capacidade de 1.500 l - 6,5 kW | C166: 194329.4528 | D166: 12.4926 | E166: 3.4258 | F166: 0 | G166: 4.1642 | H166: 4.6346 | I166: 0 | J166: 24.7172 | K166: 15.9184
A167: E9523 | B167: Motoscraper - 304 kW | C167: 5799758.237 | D167: 272.9298 | E167: 99.9861 | F167: 0 | G167: 307.046 | H167: 247.7235 | I167: 31.136 | J167: 958.8214 | K167: 404.0519
A168: E9524 | B168: Motoniveladora - 93 kW | C168: 1383512.173 | D168: 69.1756 | E168: 24.3893 | F168: 0 | G168: 88.9401 | H168: 71.0474 | I168: 31.136 | J168: 284.6884 | K168: 124.7009
A169: E9525 | B169: Ponte rolante com capacidade de 15 t e vão de até 15 m - 20 kW | C169: 3187571.251 | D169: 127.5029 | E169: 54.0851 | F169: 0 | G169: 79.6893 | H169: 0 | I169: 50.3164 | J169: 311.5937 | K169: 231.9044
A170: E9526 | B170: Retroescavadeira de pneus - capacidade da caçamba da pá-carregadeira de 0,76 m³ e da retroescavadeira de 0,29 m³ - 58 kW | C170: 520929.906 | D170: 36.4651 | E170: 9.6424 | F170: 0 | G170: 36.4651 | H170: 38.4012 | I170: 31.136 | J170: 152.1098 | K170: 77.2435
A171: E9527 | B171: Martelete perfurador/rompedor a ar comprimido de 25 kg para rocha com capacidade de 2.040 gpm | C171: 20175.7396 | D171: 1.6141 | E171: 0.3735 | F171: 0 | G171: 1.6141 | H171: 0 | I171: 25.1582 | J171: 28.7599 | K171: 27.1458
A172: E9528 | B172: Empilhadeira a diesel com capacidade de 4 t - 60 kW | C172: 504431.6813 | D172: 40.3545 | E172: 9.337 | F172: 0 | G172: 35.3102 | H172: 45.837 | I172: 25.1582 | J172: 155.9969 | K172: 74.8497
A173: E9529 | B173: Jateador para estruturas metálicas com transportador a roletes - 22 kW | C173: 4045819.844 | D173: 269.7213 | E173: 72.8079 | F173: 0 | G173: 202.291 | H173: 0 | I173: 25.1582 | J173: 569.9784 | K173: 367.6874
A174: E9530 | B174: Rolo compactador liso vibratório autopropelido por pneus de 11 t - 97 kW | C174: 700734.7036 | D174: 46.7156 | E174: 12.6103 | F174: 0 | G174: 46.7156 | H174: 79.0434 | I174: 31.136 | J174: 216.2209 | K174: 90.4619
A175: E9532 | B175: Equipamento de solda MIG com acessórios - 14,6 kVA | C175: 72529.2108 | D175: 5.8023 | E175: 1.3425 | F175: 0 | G175: 5.8023 | H175: 0 | I175: 0 | J175: 12.9471 | K175: 7.1448
A176: E9535 | B176: Serra circular com bancada - D = 30 cm - 4 kW | C176: 7156.8871 | D176: 0.6441 | E176: 0.1325 | F176: 0 | G176: 0.3578 | H176: 0 | I176: 25.1582 | J176: 26.2926 | K176: 25.9348
A177: E9536 | B177: Embarcação de transporte de pessoal e apoio logístico - 30 kW | C177: 115409.0406 | D177: 1.8033 | E177: 0.6799 | F177: 0 | G177: 2.0036 | H177: 56.2248 | I177: 37.3478 | J177: 98.0594 | K177: 39.831
A178: E9538 | B178: Conjunto vibratório para meio tubo de concreto com encaixe PB e 3 jogos de fôrmas - D = 0,30 m - 2,20 kW | C178: 17034.6896 | D178: 2.2713 | E178: 0.5255 | F178: 0 | G178: 1.7035 | H178: 0 | I178: 0 | J178: 4.5003 | K178: 2.7968
A179: E9539 | B179: Equipamento de batimetria monofeixe | C179: 98110.0734 | D179: 6.3071 | E179: 1.7295 | F179: 0 | G179: 3.5039 | H179: 0 | I179: 30.5299 | J179: 42.0704 | K179: 38.5665
A180: E9540 | B180: Trator sobre esteiras com lâmina - 127 kW | C180: 1057549.368 | D180: 41.1269 | E180: 18.1252 | F180: 0 | G180: 58.7527 | H180: 90.5535 | I180: 31.136 | J180: 239.6943 | K180: 90.3881
A181: E9541 | B181: Trator sobre esteiras com lâmina - 259 kW | C181: 4837699.493 | D181: 188.1328 | E181: 82.9128 | F181: 0 | G181: 268.7611 | H181: 184.6722 | I181: 31.136 | J181: 755.6149 | K181: 302.1816
A182: E9543 | B182: Compressor de ar respirável para recarga de cilindros de mergulho com capacidade de até 35 MPa e 3,58 l/s - 5,52 kW | C182: 50770.9942 | D182: 3.3847 | E182: 0.9137 | F182: 0 | G182: 3.3847 | H182: 0 | I182: 0 | J182: 7.6831 | K182: 4.2984
A183: E9544 | B183: Vassoura mecânica rebocável com largura de 2,44 m | C183: 74244.0148 | D183: 6.682 | E183: 1.3743 | F183: 0 | G183: 4.4546 | H183: 0 | I183: 0 | J183: 12.5109 | K183: 8.0563
A184: E9545 | B184: Vibroacabadora de asfalto sobre esteiras - 82 kW | C184: 1979998.469 | D184: 98.9999 | E184: 34.9045 | F184: 0 | G184: 127.2856 | H184: 79.3489 | I184: 36.5778 | J184: 377.1167 | K184: 170.4822
A185: E9547 | B185: Máquina de solda elétrica transformadora 250 A - 9,20 kW | C185: 929.6119 | D185: 0.0744 | E185: 0.0172 | F185: 0 | G185: 0.0744 | H185: 0 | I185: 0 | J185: 0.166 | K185: 0.0916
A186: E9548 | B186: Bomba centrífuga com capacidade de 7,1 a 22 m³/h - 1,50 kW | C186: 2447.7607 | D186: 0.1958 | E186: 0.0453 | F186: 0 | G186: 0.1713 | H186: 0 | I186: 0 | J186: 0.4124 | K186: 0.2411
A187: E9551 | B187: Obturador mecânico simples com extensão de 12 m | C187: 5074.1888 | D187: 0.4567 | E187: 0.0939 | F187: 0 | G187: 0.2537 | H187: 0 | I187: 0 | J187: 0.8043 | K187: 0.5506
A188: E9552 | B188: Nível ótico com capacidade de aumento de 32x | C188: 14214.2324 | D188: 1.1371 | E188: 0.2631 | F188: 0 | G188: 0.7107 | H188: 0 | I188: 0 | J188: 2.1109 | K188: 1.4002
A189: E9553 | B189: Estação total eletrônica com alcance máximo de 3.000 m | C189: 32005.9395 | D189: 2.8805 | E189: 0.5924 | F189: 0 | G189: 1.6003 | H189: 0 | I189: 0 | J189: 5.0732 | K189: 3.4729
A190: E9556 | B190: Compactador manual de placa vibratória - 3,00 kW | C190: 10363.5668 | D190: 0.6909 | E190: 0.1865 | F190: 0 | G190: 0.6909 | H190: 4.9197 | I190: 0 | J190: 6.488 | K190: 0.8774
A191: E9558 | B191: Tanque de estocagem de asfalto com capacidade de 30.000 l | C191: 701373.701 | D191: 29.2239 | E191: 10.1425 | F191: 0 | G191: 18.2649 | H191: 0 | I191: 0 | J191: 57.6313 | K191: 39.3664
A192: E9559 | B192: Aquecedor de fluido térmico - 12 kW | C192: 687055.0522 | D192: 30.9175 | E192: 9.538 | F192: 0 | G192: 20.6117 | H192: 9.1674 | I192: 0 | J192: 70.2346 | K192: 40.4555
A193: E9560 | B193: Ônibus com capacidade para 80 passageiros - 175 kW | C193: 1008889.538 | D193: 43.2381 | E193: 17.7853 | F193: 7.2064 | G193: 64.8572 | H193: 169.3423 | I193: 30.9429 | J193: 333.3722 | K193: 99.1727
A194: E9561 | B194: GPS geodésico de simples frequência (L1) | C194: 27839.7829 | D194: 2.2272 | E194: 0.5153 | F194: 0 | G194: 1.392 | H194: 0 | I194: 0 | J194: 4.1345 | K194: 2.7425
A195: E9562 | B195: GPS geodésico de dupla frequência (L1/L2) | C195: 60182.7519 | D195: 4.8146 | E195: 1.114 | F195: 0 | G195: 3.0091 | H195: 0 | I195: 0 | J195: 8.9377 | K195: 5.9286
A196: E9563 | B196: Perfuratriz hidráulica sobre esteiras com clamshell - 220 kW | C196: 2873451.559 | D196: 191.5634 | E196: 51.7102 | F196: 0 | G196: 191.5634 | H196: 112.046 | I196: 31.136 | J196: 578.019 | K196: 274.4096
A197: E9565 | B197: Trator sobre esteiras com lâmina e escarificador - 259 kW | C197: 4848486.057 | D197: 188.5522 | E197: 83.0977 | F197: 0 | G197: 269.3603 | H197: 184.6722 | I197: 31.136 | J197: 756.8184 | K197: 302.7859
A198: E9566 | B198: Guindaste móvel sobre esteiras com clamshell de 1,9 m³ - 220 kW | C198: 4071010.723 | D198: 142.4854 | E198: 69.0749 | F198: 0 | G198: 203.5505 | H198: 56.023 | I198: 36.5778 | J198: 507.7116 | K198: 248.1381
A199: E9567 | B199: Fresadora de piso de concreto - 6,7 kW | C199: 18875.8828 | D199: 1.5101 | E199: 0.3494 | F199: 0 | G199: 1.5101 | H199: 10.9873 | I199: 0 | J199: 14.3569 | K199: 1.8595
A200: E9568 | B200: Furadeira de impacto de 12,5 mm - 0,80 kW | C200: 1384.3011 | D200: 0.1107 | E200: 0.0256 | F200: 0 | G200: 0.0692 | H200: 0 | I200: 0 | J200: 0.2055 | K200: 0.1363
... 333 more rows

Sheet DNIT EQUIP
A1: 2023-04-01
A2: Tabela 1 - Custos de veículos
A3: ="Tabela de Preços de Consultoria - mês de referência: "&TEXT(A1,"MMMM")&" de "&TEXT(A1,"AAAA") -> Tabela de Preços de Consultoria - mês de referência: abril de 2023
A4: Item | B4: Código | C4: Tipo | D4: Unidade | E4: Custo unitário (R$ / un) | G4: S
E5: Produtivo | F5: Improdutivo
A6: Veículos | B6: E8889 | C6: Veículo leve - 53 kW (sem motorista) | D6: hora | E6: 31.83 | F6: 6.31
B7: E8891 | C7: Veículo leve picape 4x4 - 147 kW (sem motorista) | D7: hora | E7: 86.6 | F7: 28.02
B8: E8887 | C8: Van furgão - 93 kW (com motorista) | D8: hora | E8: 76.72 | F8: 41.55
A9: Fonte: FGV IBRE
A11: Tabela 2 - Custos de imóveis, mobiliário, cestas de instalações e custos diversos
A12: ="Tabela de Preços de Consultoria - mês de referência: "&TEXT(A1,"MMMM")&" de "&TEXT(A1,"AAAA") -> Tabela de Preços de Consultoria - mês de referência: abril de 2023
A13: Item | B13: Código | C13: Tipo | E13: Unidade | F13: Custo unitário (R$ / un)
A14: Imóveis | B14: B8951 | C14: Comercial (2,60% do CMCC - SINAPI) | E14: m² x mês | F14: 46.78
B15: B8952 | C15: Residencial (1,70% do CMCC - SINAPI) | E15: m² x mês | F15: 30.59
A16: Mobiliário | B16: B8953 | C16: Escritório | E16: ocupante x mês | F16: 510.96
B17: B8954 | C17: Residência | E17: ocupante x mês | F17: 44.3
A18: Cesta das Instalações | B18: B8955 | C18: Laboratório de asfalto | E18: mês | F18: 5400.53
B19: B8956 | C19: Laboratório de concreto | E19: mês | F19: 4270.25
B20: B8957 | C20: Laboratório de solos | E20: mês | F20: 4311.34
B21: B8958 | C21: Topografia | E21: mês | F21: 3134.16
A22: Custos Diversos | B22: B8959 | C22: Escritório | E22: ocupante x mês | F22: 131.32
B23: B8960 | C23: Residência | E23: ocupante x mês | F23: 208.36
A24: Fonte: FGV IBRE
